{"text_format":"1","workbook":"xlsx","n_sheets":2,"sheets":["CATALOGO","RESUMEN"],"not_rendered":{"charts":0,"images":1,"macros":1,"external_links":0,"defined_names":4,"comments":0,"pivot_tables":0},"unopened":[],"bounds":{"document_bytes":16777216,"sheet_cells":100000,"rows_first":2000,"rows_last":500,"rows_between":2000,"halvings":0,"cell_chars":16384,"cell_head_chars":4096},"cells_cut":0,"cells_raw":0,"read":"whole","date_system":"1900"}

{"sheet":"CATALOGO","index":0,"n_rows":234,"n_cols":8,"rows_kept":234,"cut":false,"hidden":false,"merged":[[8,0,8,4],[8,5,9,6],[9,0,9,4],[10,0,10,4],[10,5,10,6],[2,0,2,6],[3,0,3,6],[4,0,4,6],[6,0,6,6],[5,0,5,6]]}
[]
[]
["GOBIERNO DEL ESTADO DE BAJA CALIFORNIA SUR"]
["SECRETARIA DE PLANEACIÓN URBANA, INFRAESTRUCTURA, MOVILIDAD,\nMEDIO AMBIENTE Y RECURSOS NATURALES"]
["DIRECCIÓN DE OBRAS PUBLICAS"]
[]
["CATALOGO DE CONCEPTOS Y CANTIDADES DE OBRA"]
[]
["OBRA:    Construccion de la Cancha de Usos Multiples de la Comunidad de Bahía Asuncion",null,null,null,null,"No. Licitacion: \nLPO-000000007-025-2022"]
["UBICACIÓN: Bahia Asuncion"]
["MUNICIPIO: Mulege, Baja California Sur",null,null,null,null,"Concurso: "]
[]
["CLAVE","CONCEPTO","UNIDAD","CANTIDAD","PRECIO UNITARIO","PRECIO UNITARIO\nCON LETRA","IMPORTE"]
["A.-","PRELIMINARES",null,null,null,null,{"$f":"D14*E14","v":0}]
["01.-","RETIRO  Y DEMOLICIÓN DE ELEMENTOS (SIN RECUPERACION). MEDIDA EN SITIO, EJECUTADA EN FORMA MANUAL USANDO PICO, MARRO, CINCEL Y CUÑAS. O MECANICA CON EQUIPO NEUMATICO, INCLUYE: CARGO DIRECTO POR EL COSTO DE LA MANO DE OBRA REQUERIDA, CORTES DE VARILLAS, LIMPIEZA DE ÁREA, CARGA Y ACARREO DEL ESCOMBRO AL BANCO DE DESPERDICIO DE LA OBRA, INDICADO POR EL LA DIRECCION DE OBRAS PUBLICAS, EQUIPO DE SEGURIDAD, INSTALACIONES ESPECIFICAS, DEPRECIACIÓN Y DEMÁS DERIVADOS DEL USO DE HERRAMIENTA Y EQUIPO EN CUALQUIER  ALTURA Y CUALQUIER NIVEL."]
["1.-","DE JARDINERA EXISNTENTES DE 60 CMS. DE ALTURA ( MUROS DE BLOCK)","ML",14.26,0,null,{"$f":"ROUND(D16*E16,2)","v":0},{"$f":"ROUND(D16*E16,2)","v":0}]
["2.-","DE TEMPLETE EXISNTENTE EN MEDIDAS DE 8.40 X 6.70 MTS., INCLUYE: DEMOLICION DE FIRME Y MJROS DE BLOCK.","M2",56.28,0,null,{"$f":"ROUND(D17*E17,2)","v":0},0]
["3.-","DE GRADAS EXISTENTES MEDIDAS EN PLANTA DE: 2.80 X 9.30M Y OTRA DE 8.70 X 3.00 M, INCLUYE: DEMOLICION DE CIMENTACION, MUROS Y LOSA DE CONCRETO.","PZA",2,0,null,0,0]
["4.-","DE BARDA EXISTENTE DE 2.40 M. DE ALTURA","ML",41.3,0,null,0,0]
["5.-","DE MURETE DE PIEDRA EXISTENTE (BASE HASTA BANDERA) EN MEDIDAS EN PLANTA DE 3.0 X 3.0 MTS. X 1.50 MTS. DE ALTURA","PZA",1,0,null,0,0]
["6.-","DE PISO DE CONCRETO EXISTENTE","M2",125.28,0,null,0,0]
["7.-","DE ESCALINATA EXISTENTE.","M2",4.8,0,null,0,0]
["8.-","SUMINISTRO Y COLOCACIÓN DE LETRERO DE OBRA, (VER CRITERIOS DE PROYECTO DE ARQUITECTURA PARA IMAGENES GUBERNAMENTALES) A BASE DE DE LONA, MARCO DE FIERRO DE TUBO REDONDO DE 3\" DE DIÁMETRO, CON TIRANTES, ANCLADO EN DADO DE CONCRETO DE 60X60X80 CMS., COLOCADO A 1.00 MTS. DEL NIVEL DEL TERRENO NATURAL.","PZA",1,0,null,0,0]
[null,"SUBTOTAL PRELIMINARES",null,null,null,null,{"$f":"SUM(G16:G23)","v":0},0]
["B.-","TECHUMBRE METALICA",null,null,null,null,null,0]
["I.-","CIMENTACION",null,null,null,null,null,0]
["01.-","TRAZO Y NIVELACIÓN CON EQUIPO TOPOGRÁFICO A EJES EN DESPLANTE DE EDIFICIOS,  INCLUYE: CARGO DIRECTO POR EL COSTO DE LOS MATERIALES Y MANO DE OBRA QUE INTERVENGAN, LOCALIZACIÓN GENERAL, LOCALIZACIÓN DE ENTRE EJES, SEÑALAMIENTOS, ESTACADO, BANCOS DE NIVEL, MOJONERAS, LIMPIEZA Y RETIRO DE SOBRANTES FUERA DE OBRA, AL BANCO DE  DESPERDICIO INDICADO POR EL LA DIRECCION DE OBRAS PUBLICAS, EQUIPO DE SEGURIDAD, INSTALACIONES ESPECÍFICAS, DEPRECIACIÓN Y DEMÁS DERIVADOS DEL USO DE HERRAMIENTA Y EQUIPO.","M2",540,0,null,{"$f":"ROUND(D27*E27,2)","v":0},0]
["02.-","EXCAVACIÓN EN CEPAS EN TERRENO INVESTIGADO EN OBRA. MEDIDO EN BANCO. INCLUYE: CARGO DIRECTO POR EL COSTO DE LOS MATERIALES Y MANO DE OBRA QUE INTERVENGAN. TRAZO Y NIVELACIÓN, ADEMES Y EXTRACCIÓN DE ADEMES, AFINE DE TALUD Y FONDO DE EXCAVACIÓN, A CUALQUIER PROFUNDIDAD, TRASPALEO, ELEVACIÓN, CARGA Y ACARREO SEGÚN EL CASO, EQUIPO DE SEGURIDAD, INSTALACIONES ESPECÍFICAS, DEPRECIACIÓN, Y DEMÁS DERIVADOS DEL USO DE HERRAMIENTA Y EQUIPO.","M3",148,0,null,0,0]
["03.-","PLANTILLA DE CONCRETO HECHA EN OBRA F'C=100 KG/CM2 DE 5 CMS. DE ESPESOR.","M2",80,0,null,0,0]
["04.-","TRABE DE LIGA DE 0.30X0.20 MTS. ARMADA CON 4 VS No. 3 Y EST. No. 2 A/C O.20 MTS. CONCRETO F'C= 250 KG/CM2CON IMPERMEABILIZANTE INTEGRAL SIKA, INCLUYE: MANO DE OBRA, CIMBRA COMUN, DESCIMBRA, COLADO, CURADO, IMPERMEABILIZANTE ASFALTICO BASE AGUA VIBRADO, TRASLAPES, AMARRES, DESPERDICIOS, HERRAMIENTA, EQUIPO, ANDAMIOS, CONCEPTO A SATISFACCION DE SUPERVISION. ","ML",60,0,null,0,0]
["05.-","SUMINISTRO Y COLOCACIÓN DE ACERO DE REFUERZO No. 3 (F´y=2400 KG/CM2.) EN CIMENTACIÓN, INCLUYE: CARGO DIRECTO POR EL COSTO DE LOS MATERIALES, HERRAMIENTA Y MANO DE OBRA QUE INTERVENGAN, FLETE A OBRA, HABILITADO, ARMADO, DOBLECES, GANCHOS, ESCUADRAS, DESPERDICIO, ACARREO HASTA EL LUGAR DE SU UTILIZACIÓN, ELEVACIÓN, SILLETAS, TRASLAPES,  LIMPIEZA Y RETIRO DE SOBRANTES FUERA DE OBRA, ELABORACIÓN, EQUIPO DE SEGURIDAD, INSTALACIONES ESPECÍFICAS, DEPRECIACIÓN Y DEMÁS CARGOS DERIVADOS DEL USO DE EQUIPO Y HERRAMIENTA EN CUALQUIER NIVEL.  ","KG",280,0,null,0,0]
["06.-","SUMINISTRO Y COLOCACIÓN DE ACERO DE REFUERZO No. 5 (F´y=2400 KG/CM2.) EN CIMENTACIÓN, INCLUYE: CARGO DIRECTO POR EL COSTO DE LOS MATERIALES, HERRAMIENTA Y MANO DE OBRA QUE INTERVENGAN, FLETE A OBRA, HABILITADO, ARMADO, DOBLECES, GANCHOS, ESCUADRAS, DESPERDICIO, ACARREO HASTA EL LUGAR DE SU UTILIZACIÓN, ELEVACIÓN, SILLETAS, TRASLAPES,  LIMPIEZA Y RETIRO DE SOBRANTES FUERA DE OBRA, ELABORACIÓN, EQUIPO DE SEGURIDAD, INSTALACIONES ESPECÍFICAS, DEPRECIACIÓN Y DEMÁS CARGOS DERIVADOS DEL USO DE EQUIPO Y HERRAMIENTA EN CUALQUIER NIVEL. ","KG",450,0,null,0,0]
["07.-","SUMINISTRO Y COLOCACIÓN DE ACERO DE REFUERZO No. 6 (F´y=2400 KG/CM2.) EN CIMENTACIÓN, INCLUYE: CARGO DIRECTO POR EL COSTO DE LOS MATERIALES, HERRAMIENTA Y MANO DE OBRA QUE INTERVENGAN, FLETE A OBRA, HABILITADO, ARMADO, DOBLECES, GANCHOS, ESCUADRAS, DESPERDICIO, ACARREO HASTA EL LUGAR DE SU UTILIZACIÓN, ELEVACIÓN, SILLETAS, TRASLAPES,  LIMPIEZA Y RETIRO DE SOBRANTES FUERA DE OBRA, ELABORACIÓN, EQUIPO DE SEGURIDAD, INSTALACIONES ESPECÍFICAS, DEPRECIACIÓN Y DEMÁS CARGOS DERIVADOS DEL USO DE EQUIPO Y HERRAMIENTA EN CUALQUIER NIVEL. ","KG",730,0,null,0,0]
["08.-","CIMBRA DE MADERA Y DESCIMBRA EN CIMENTACIÓN,  INCLUYE; CARGO DIRECTO POR EL COSTO DE LOS MATERIALES, HERRAMIENTA  Y MANO DE OBRA QUE INTERVENGAN, HABILITADO,  DESMONTAJE, FLETE A OBRA, DESPERDICIO, ACARREO HASTA EL LUGAR DE SU UTILIZACIÓN,  CLAVO, ALAMBRE RECOCIDO DEL NO.18, CHAFLÁN, FRONTERAS, MANTENIMIENTO Y RETIRO CON RECUPERACIÓN A FAVOR DEL CONTRATISTA, LIMPIEZA Y RETIRO DE SOBRANTES FUERA DE OBRA, EQUIPO DE SEGURIDAD,   INSTALACIONES ESPECÍFICAS, DEPRECIACIÓN Y DEMÁS CARGOS DERIVADOS DEL USO DE EQUIPO Y HERRAMIENTA EN CUALQUIER NIVEL.     ","M2",40,0,null,0,0]
["09.-","SUMINISTRO Y APLICACIÓN DE IMPERMEABILIZANTE EN CIMENTACION A BASE DE 2 CAPAS DE IMPERTOL 1150 DE RESIKON O SIMILAR, INCLUYE: LIMPIEZA Y PREPARACIÓN DE LA SUPERFICIE Y ACARREO DENTRO DE LA OBRA DEL MATERIAL.","M2",142,0,null,0,0]
["10.-","RELLENO Y COMPACTACION DEL MATERIAL PRODUCTO DE EXCAVACION  90% PROCTOR EN CAPAS DE 15 CMS. DE ESPESOR, INCLUYE:  ACARREO DENTRO DE LA OBRA, INCORPORACION DE HUMEDAD, MEDIDO COMPACTADO.","M3",132,0,null,0,0]
["11.-","CONCRETO PREMEZCLADOEN CIMENTACIÓN RESISTENCIA NORMAL F'C=250 KG/CM2 DE REVENIMIENTO DE 8 A 11 T.M.A. 3/4\",   INCLUYE CARGO DIRECTO POR EL COSTO DE LOS MATERIALES, HERRAMIENTA Y MANO DE OBRA QUE INTERVENGAN, ELABORACIÓN DEL CONCRETO, FLETE A OBRA, DESPERDICIO, ACARREO, VERTIDO Y ELEVACIÓN HASTA EL LUGAR DE SU UTILIZACIÓN,  LIMPIEZA Y RETIRO DE SOBRANTES FUERA DE OBRA, IMPERMEABILIZANTE  INTEGRAL SIKA, ELABORACIÓN Y ENTREGA DE PRUEBAS DE LABORATORIO (NMX-C-156-1997-ONNCCE, NMX-155-ONNCCE-2004, NMX-C-083-ONNCCE-2002). EQUIPO DE SEGURIDAD, INSTALACIONES ESPECÍFICAS, , DEPRECIACIÓN Y DEMÁS CARGOS DERIVADOS DEL USO DE EQUIPO Y HERRAMIENTA EN CUALQUIER NIVEL. ","M3",16.45,0,null,0,0]
["12.-","PISO DE CONCRETO PRECOLADO DE F'C=200 KG/CM2 DE 10 CMS. DE ESPESOR, ACABADO PULIDO FINO INTEGRAL O RAYADO CON BROCHA DE PELO FINA, INCLUYE:  MATERIALES NECESARIOS, MANO DE OBRA, MALLALAC 6-6 X 10-10, CIMBRA, IMPERMEABILIZANTE INTEGRAL SIKA, DECIMBRA, BOLTEADOR, JUNTAS FRIAS,  ACARREOS INTERNOS, NIVELADO, REGLEADO,  CONCEPTO A SATISFACCIÓN DE SUPERVISIÓN.","M2",125.28,0,null,0,0]
[null,"SUBTOTAL CIMENTACION",null,null,null,null,{"$f":"SUM(G27:G38)","v":0},0]
["II.-","ESTRUCTURA DE ACERO Y TECHUMBRE",null,null,null,null,null,0]
["01.-","SUMINISTRO Y COLOCACION DE VIGA TIPO I.P.R. DE 12\"X4\" DE 23.8 KG/M (V-1), PARA CONFORMAR MARCO PRINCIPAL EN FORMA DE ARCO; INCLUYE: UNA MANO DE PRIMARIO EPÓXICO ANTICORROSIVO EA P-10 COLOR BLANCO CON CATALIZADOR DISOLUCIÓN A BASE DE SOLVENTE O SIMILAR EN CALIDAD Y PRECIO  Y 2 MANOS DE PINTURA ESMALTE EN ACABADO FINAL, COLOR DEFINIDO POR LA RESIDENCIA, LIMPIEZA DE ELEMENTOS ESTRUCTURALES DE ACERO,  A BASE DE SAND-  BLASTER (ARENEADO A PRESION) HASTA RETIRAR LAS CAPAS DE PINTURA, OXIDOS, COCHAMBRE, DEJANDO LA SUPERFICIE VIRGEN, SOLDADURA E6011 PARA ETAPA PRELIMINAR Y E7018 PARA ETAPA FINAL, PLACAS DE CONEXION DE 10 MM (VER DETALLES DE CONEXION EN PLANOS), DE DESPERDICIOS, ROLADO LIGERO, MANO DE OBRAS, GRUAS Y TODO LO NECESARIO PARA SU CORRECTO FUNCIONAMIENTO.     ","KG",2667,0,null,{"$f":"ROUND(D41*E41,2)","v":0},0]
["02.-","SUMINISTRO Y COLOCACION DE VIGA TIPO I.P.R. DE 8\"X4\" DE 22.4 KG/M (V-2), COMO ARRIOSTRE; INCLUYE: UNA MANO DE PRIMARIO EPÓXICO ANTICORROSIVO EA P-10 COLOR BLANCO CON CATALIZADOR DISOLUCIÓN A BASE DE SOLVENTE O SIMILAR EN CALIDAD Y PRECIO  Y 2 MANOS DE PINTURA ESMALTE EN ACABADO FINAL, COLOR DEFINIDO POR LA RESIDENCIA, LIMPIEZA DE ELEMENTOS ESTRUCTURALES DE ACERO,  A BASE DE SAND-  BLASTER (ARENEADO A PRESION) HASTA RETIRAR LAS CAPAS DE PINTURA, OXIDOS, COCHAMBRE, DEJANDO LA SUPERFICIE VIRGEN, SOLDADURA E6011 PARA ETAPA PRELIMINAR Y E7018 PARA ETAPA FINAL, DESPERDICIOS,  MANO DE OBRAS, GRUAS Y TODO LO NECESARIO PARA SU CORRECTO FUNCIONAMIENTO.     ","KG",1344,0,null,0,0]
["03.-","SUMINISTRO Y COLOCACION DE POLIN MONTEN SENCILLO 6MT14 (L - 1 ), INCLUYE: UNA MANO DE PRIMARIO EPÓXICO ANTICORROSIVO EA P-10 COLOR BLANCO CON CATALIZADOR DISOLUCIÓN A BASE DE SOLVENTE O SIMILAR EN CALIDAD Y PRECIO  Y 2 MANOS DE PINTURA ESMALTE EN ACABADO FINAL, COLOR DEFINIDO POR LA RESIDENCIA, ANGULO DE RESPALDO DE 3\"X3\"X1/4\",  SOLDADURA E6011 PARA ETAPA PRELIMINAR Y E7018 PARA ETAPA FINAL, DESPERDICIOS,  MANO DE OBRAS, GRUAS Y TODO LO NECESARIO PARA SU CORRECTO FUNCIONAMIENTO.  ","KG",1900,0,null,0,0]
["04.-","SUMINISTRO Y COLOCACION DE POLIN MONTEN EN CAJA 6MT14 (ST - 1 ), INCLUYE: UNA MANO DE PRIMARIO EPÓXICO ANTICORROSIVO EA P-10 COLOR BLANCO CON CATALIZADOR DISOLUCIÓN A BASE DE SOLVENTE O SIMILAR EN CALIDAD Y PRECIO  Y 2 MANOS DE PINTURA ESMALTE EN ACABADO FINAL, COLOR DEFINIDO POR LA RESIDENCIA,  ANGULO DE RESPALDO DE 3\"X3\"X1/4\",  SOLDADURA E6011 PARA ETAPA PRELIMINAR Y E7018 PARA ETAPA FINAL, DESPERDICIOS,  MANO DE OBRAS, GRUAS Y TODO LO NECESARIO PARA SU CORRECTO FUNCIONAMIENTO.  ","KG",1493,0,null,0,0]
["05.-","SUMINISTRO Y COLOCACION DE REDONDO LISO DE 1/2\" COMO LIGA ENTRE POLIN, INCLUYE: TUERCA, RONDAN PLANA, EN CADA POLIN, DESPERDICIOS,UNA MANO DE PRIMARIO EPÓXICO ANTICORROSIVO EA P-10 COLOR BLANCO CON CATALIZADOR DISOLUCIÓN A BASE DE SOLVENTE O SIMILAR EN CALIDAD Y PRECIO  Y 2 MANOS DE PINTURA ESMALTE EN ACABADO FINAL, COLOR DEFINIDO POR LA RESIDENCIA, ELEVACION DEL MATERIAL, BARRENO EN EL POLIN.","KG",119.67,0,null,0,0]
["06.-","SUMINISTRO Y COLOCACION DE LAMINA PINTRO R-72 CAL. 26, INCLUYE: FIJACION A MONTEN CON PIJA AUTORROSCABLE DE 3/4\", SELLADOR EN JUNTAS Y TRASLAPES CON SIKAFLEX, ELEVACION DEL MATERIAL, ANDAMIOS, ROLADO Y DESPERDICIOS.","M2",647.89,0,null,0,0]
["07.-","SUMINISTRO, HABILITADO Y COLOCACION DE ANCLAS DE 0.70 MTS.  DE LONGITUD DE DESARROLLO Y 0.10 MTS DE DOBLECES (PATA) (AN-1), TIPO COLD ROLED DE 3/4\" CUERDA DE  0.07 MTS. EN EXTREMO, INCLUYE: NIVELACION Y PLOMEO, PLANTILLA PARA COLOCACION, TUERCAS, ARANDELAS (VER DETALLE EN PLANO AN-1). ","PZA",96,0,null,0,0]
["08.-","SUMINISTRO, COLOCACION Y HABILITADO DE PLACA BASE PARA COLUMNA TIPÒ        C-01 DE ACERO A-36 (650X450X25) MM CON OCHO PERFORACIONES DE 7/8\" Ø C/U, INCLUYE: NIVELACION VERTICAL CON GROUT, ANCLADO Y PLOMEO,UNA MANO DE PRIMARIO EPÓXICO ANTICORROSIVO EA P-10 COLOR BLANCO CON CATALIZADOR DISOLUCIÓN A BASE DE SOLVENTE O SIMILAR EN CALIDAD Y PRECIO  Y 2 MANOS DE PINTURA ESMALTE EN ACABADO FINAL, COLOR DEFINIDO POR LA RESIDENCIA, LIMPIEZA DE ELEMENTOS ESTRUCTURALES DE ACERO,  A BASE DE SAND-  BLASTER (ARENEADO A PRESION) HASTA RETIRAR LAS CAPAS DE PINTURA, OXIDOS, COCHAMBRE, DEJANDO LA SUPERFICIE VIRGEN. ","PZA",12,0,null,0,0]
["09.-","SUMINISTRO, COLOCACION Y HABILITADO  DE PERFIL P.T.R. 3\" VERDE SENCILLO (8.62 KG/M)  PARA CONFORMAR REFUERZOS A TENSION Y COMPRESION (MONTANTES Y DIAGONALES), DE VIGA (V-1), INCLUYE: UNA MANO DE PRIMARIO EPÓXICO ANTICORROSIVO EA P-10 COLOR BLANCO CON CATALIZADOR DISOLUCIÓN A BASE DE SOLVENTE O SIMILAR EN CALIDAD Y PRECIO  Y 2 MANOS DE PINTURA ESMALTE EN ACABADO FINAL, COLOR DEFINIDO POR LA RESIDENCIA, LIMPIEZA DE ELEMENTOS ESTRUCTURALES DE ACERO,  A BASE DE SAND-  BLASTER (ARENEADO A PRESION) HASTA RETIRAR LAS CAPAS DE PINTURA, OXIDOS, COCHAMBRE, DEJANDO LA SUPERFICIE VIRGEN,CORTE, PLOMEO, DESPERDICIOS, SOLDADURA E6011, TAPAR EXTREMOS DE LOS DIAGONALES Y MONTANTES CON LAMINA PARA EVITAR PENETRACION DE OXIDO Y TODO LO NECESARIO PARA SU CORRECTO FUNCIONAMIENTO.","KG",2763.4,0,null,0,0]
["10.-","SUMINISTRO, COLOCACION Y HABILITADO  DE PLACAS DE CONEXION TIPO, DE ACERO A-36 (500X350X25 MM), PARA UNION DE COLUMNA (C-1) CON VIGA (V-1) INCLUYE: CORTE PLOMEO, DESPERDICIOS, SOLDADURA E6011 COMO PRELIMINAR Y E7018 COMO FINAL, UNA MANO DE PRIMARIO EPÓXICO ANTICORROSIVO EA P-10 COLOR BLANCO CON CATALIZADOR DISOLUCIÓN A BASE DE SOLVENTE O SIMILAR EN CALIDAD Y PRECIO  Y 2 MANOS DE PINTURA ESMALTE EN ACABADO FINAL, COLOR DEFINIDO POR LA RESIDENCIA, Y TODO LO NECESARIO.  ","PZA",12,0,null,0,0]
["11.-","SUMINISTRO Y COLOCACION DE VIGA TIPO IPR DE 16\"X7\" DE 74.5 KG/M (C-1), COMO COLUMNA PARA CONFORMAR MARCO PRINCIPAL EN FORMA DE ARCO, INCLUYE:  UNA MANO DE PRIMARIO EPÓXICO ANTICORROSIVO EA P-10 COLOR BLANCO CON CATALIZADOR DISOLUCIÓN A BASE DE SOLVENTE O SIMILAR EN CALIDAD Y PRECIO  Y 2 MANOS DE PINTURA ESMALTE EN ACABADO FINAL, COLOR DEFINIDO POR LA RESIDENCIA, LIMPIEZA DE ELEMENTOS ESTRUCTURALES DE ACERO,  A BASE DE SAND-  BLASTER (ARENEADO A PRESION) HASTA RETIRAR LAS CAPAS DE PINTURA, OXIDOS, COCHAMBRE, DEJANDO LA SUPERFICIE VIRGEN, SOLDADURA E6011 PARA ETAPA PRELIMINAR Y 7018 PARA ETAPA FINAL, PLACAS DE CONEXION DE 10 MM, (VER DETALLES DE CONEXION EN PLANOS), DESPERDICIOS, MANO DE OBRA, GRUAS Y TODO LO NECESARIO PARA SU CORREECTO FUNCIONAMIENTO.","KG",5375,0,null,0,0]
["12.-"," 'SUMINISTRO FABRICACION Y MONTAJE  DE ESTRUCTURAMETALICA DE ACUERDO A LAS ESPECIFICACIONES DEL A.W.S ( CÓDIGO D-1.1); A.S.T.M Y A.I.S.C. EN VIGOR.  PARA COLGAR CANASTA DE BASQUETBOL EN CANCHA EXISTENTE  HECHA A BASE  DE PERFILES DE ACERO EN MEDIDAS DE COLUMNA VERTICAL DE 0.70X0.70X6.00 MTS   A BASE DE PTR DE 1 1/2\" COLOR BALNCO (2.95 KG POR ML) Y BASE HORIZONTAL DE 1.20 PARA FIJAR TABLERO  DE 0.70X1.20X0.70 MTS. A BASE DE PERFIL  PTR DE 1 1/2\" COLOR BALNCO (2.95 KG POR ML) .  SOLDADA A UNA ESTRUCTURA SUPERIOR  EN ESTRUCTURA PRINCIPAL A BASE DE DOS VIGAS IPR DE 10\"X4\" (17.9 KG POR ML) DE 7 METROS DE LONGITUD  Y 2 VIGAS IPR  DE 10\"X4\" (17.9 KG POR ML) DE 2.10  METROS DE LONGITUD (VER DIEÑO)  ADICIONALMENTE 4 BRAZOS VIGAS IPR  DE 10\"X4\" (17.9 KG POR ML) DE 0.30  METROS DE LONGITUD C/U  EN SENTIDO VERTICAL PARA SUJETAR Y SOLDAR ESTRUCTRURA DE IPR PARA CANASTA CON 4 PERNOS ACERO  A325  DE 3\"X5/8\"' ASI COMO DOS TENSORES DE CABLE DE ACERO INOXIDABLE  DE 3/8\" SIN RECUBRIMIENTO  SUJETADO A EXTEMOS DE LA CANASTA Y ESTRUCTURA EN PARTE SUPERIOR  CON CON ABRAZADER PERRO TIPO GRILLETE  PARA 38\", SUMINISTRO, HABILITADO  Y COLOCACIÓN DE  CANASTA DE BASQUETBALL  DE 1.80X1.05 MTS CON MARCO DE ACERO PERFIL COMERCIAL DE 2\" X 2\" X 1/8\". PLACA DE 3/8\" DE ESPESOR, ARO DE FIERRO  DE REDONDO LISO DE 3/4\" D= 0.45 MTS., SUJETA CON PLACA DE SOLERA DE 1/4\", RED DE HILO BLANCO DE 0.40 M DE LONGITUD, CON TABLERO DE MADERA DURA 3/4\" DE ESPESOR ,CLAVACOTE DE MADERA, TORNILLOS CON CABEZA DE GOTA DE 2\" 1/2\" , TUERCA EXAGONAL, INCLUYE: ESTRUCTURA PARA CONFORMAR SOPORTE PARA CANASTA DE BASQUETBALL (UNION CANASTA - ESTRUCTURA TECHUMBRE METALICA A BASE PTR DE 2X2\"     INCLUYE: CARGO DIRECTO POR EL COSTO DE LOS MATERIALES, HERRAMIENTA Y MANO DE OBRA QUE INTERVENGAN, ELABORACIÓN DE PLANOS DE TALLER, FLETE A OBRA,  TRAZO, HABILITADO, CORTES, DESPERDICIOS, BARRENADO DE ELEMENTOS NECESARIOS  ACARREO HASTA EL LUGAR DE SU UTILIZACIÓN,  SOLDADURA E6011 PARA ETAPA PRELIMINAR Y E7018 PARA ETAPA FINAL, NIVELACIÓN,  UNA MANO DE PRIMARIO EPÓXICO ANTICORROSIVOEA P-10 COLOR BLANCO CON CATALIZADOR DISOLUCIÓN A BASE DE SOLVENTE O SIMILAR EN CALIDAD Y PRECIO  Y 2 MANOS DE PINTURA ESMALTE EN ACABADO FINAL, COLOR DEFINIDO POR LA RESIDENCIA., LIMPIEZA Y RETIRO DE SOBRANTES FUERA DE OBRA, ELABORACIÓN Y ENTREGA DE RESULTADOS DE PRUEBAS DE LABORATORIO. EQUIPO DE SEGURIDAD, INSTALACIONES ESPECÍFICAS, DEPRECIACIÓN Y DEMÁS CARGOS DERIVADOS DEL USO DE EQUIPO Y HERRAMIENTA EN CUALQUIER NIVEL. , GRUAS, ANDAMIOS, GASTOS D ETALLER Y TODO LO NECESARIO PARA SU CORRECTO FUNCIONAMIENTO, (VER PLANO DETALLES DE CANASTA - TABLERO)","PZA",2,0,null,0,0]
[{"$f":"-B65","v":{"$error":"#VALUE!"}},"SUBTOTAL ESTRUCTURA DE ACERO Y TECHUMBRE",null,null,null,null,{"$f":"SUM(G41:G52)","v":0},0]
["III.-","ALBAÑILERIA Y ACABADOS",null,null,null,null,null,0]
["01.-","SUMINISTRO Y APLICACIÓN DE PINTURA TIPO EPOXICO CON ENDURECEDOR POLIAMIDICO ACABADO BRILLANTE CON UNO DE BASE / UNO DE CATALIZADOR PROMETAL E-1500 DE PRISA, PREVIA LIMPIEZA DE LA SUPERFICIE CON DOS PARTES DE AGUA POR UNA DE ACIDO MURIATICO, INCL: TRAZO, EMPAPELADO Y LIMPIEZA,  EN LINEA DE CANCHA DE BASQUETBOL, FUTBOL, VOLEIBOL Y LIMITE DE CANCHA (GARANTIA 3 AÑOS POR ESCRITO)","ML",510,0,null,{"$f":"ROUND(D55*E55,2)","v":0},0]
["02.-","SUMINISTRO Y COLOCACION CON DUELA CALIBRE 18 PERFIL COMERCIAL, MARCO Y CONTRAMARCO, JALADERA AMBOS LADOS, CHAPA DE PARCHE  MARCA PHILLIPS,  PICAPORTE, BISAGRAS DE 3\", INCLUYE; CARGO DIRECTO POR EL COSTO DE LOS MATERIALES Y MANO DE OBRA QUE INTERVENGAN, FLETE A OBRA, DESPERDICIO, ACARREO HASTA EL LUGAR DE SU UTILIZACIÓN, TRAZO Y NIVELACIÓN, DOBLECES , CORTE, ENERGÍA ELÉCTRICA, OXÍGENO Y ACETILENO, SOLDADO, SOLDADURA, ELECTRODOS,  ESMERILADO, RESANES, PINTURA ANTICORROSIVA PRIMARIA EN SU CASO, PINTURA ESMALTE EN COLOR INDICADO POR SUPERVISION, LIJADO,HABILITADO, ARMADO, LIMPIEZA Y RETIRO DE SOBRANTES FUERA DE OBRA, EQUIPO DE SEGURIDAD, INSTALACIONES ESPECÍFICAS, DEPRECIACIÓN Y DEMÁS DERIVADOS DEL USO DE HERRAMIENTA Y EQUIPO. ( VER PLANO)",null,null,0,null,null,0]
[null,"PUERTA  DE 1.50 X 2.20 MTS. (TIPO P-1)","PZA",2,0,null,{"$f":"ROUND(D57*E57,2)","v":0},0]
[null,"PUERTA  DE 1.40 X 2.50 MTS. (TIPO P-2)","PZA",2,0,null,0,0]
[null,"PUERTA  DE 1.20 X 2.20 MTS. (TIPO P-3)","PZA",1,0,null,0,0]
[null,"SUBTOTAL ALBAÑILERIA Y ACABADOS",null,null,null,null,{"$f":"SUM(G55:G59)","v":0},0]
["C.-","TEMPLETE",null,null,null,null,null,0]
["I.-","CIMENTACION",null,null,null,null,null,0]
["01.-","TRAZO Y NIVELACIÓN, CON EQUIPO TOPOGRÁFICO A EJES EN DESPLANTE DE EDIFICIOS,  INCLUYE: CARGO DIRECTO POR EL COSTO DE LOS MATERIALES Y MANO DE OBRA QUE INTERVENGAN, LOCALIZACIÓN GENERAL, LOCALIZACIÓN DE ENTRE EJES, SEÑALAMIENTOS, ESTACADO, BANCOS DE NIVEL, MOJONERAS, LIMPIEZA Y RETIRO DE SOBRANTES FUERA DE OBRA, AL BANCO DE  DESPERDICIO INDICADO POR EL LA DIRECCIÓN DE OBRAS PUBLICAS, EQUIPO DE SEGURIDAD, INSTALACIONES ESPECÍFICAS, DEPRECIACIÓN Y DEMÁS DERIVADOS DEL USO DE HERRAMIENTA Y EQUIP. ESTUDIOS TOPOGRAFICOS Y ESTUDIOS TOPO - HIDRAULICOS. ","M2",87,0,null,{"$f":"ROUND(D63*E63,2)","v":0},0]
["02.-","ZAPATA CORRIDA (Z-01) DE  DE 0.80 X 0.15 MTS. CONCRETO F'C=200 KG/CM2 CON IMPERMEABILIZANTE INTEGRAL SIKA.  ARMADA CON  4 VARILLA DEL # 3 Y CONTRA TRABE DE 15 X 40 CMS. ARMADA CON 4 VARILLAS DEL # 3 Y ESTRIBOS DEL # 2 A CADA 20 CMS., INCLUYE: TRAZO, NIVELACION, EXCAVACION, PLANTILLA  F'C=100 KG/CM2, RELLENO, AFINE, COMPACTACION, IMPERMEABILIZANTE DE EMUCION ASFALTICA BASE AGUA, PRUEBAS DE LABORATORIO DE (MECANICA DE SUELOS) Y DE CONCRETO, HERRAMIENTA Y MANO DE OBRA QUE INTERVENGAN, ELABORACIÓN DEL CONCRETO, FLETE A OBRA, DESPERDICIO, VERTIDO, ACARREO HASTA EL LUGAR DE SU UTILIZACIÓN, HABILITADO DEL ACERO DE REFUERZO, ANCLAJES,  COLOCACIÓN, AMARRES, CIMBRADO, DESCIMBRADO, LIMPIEZA Y RETIRO DE SOBRANTES FUERA DE OBRA, EQUIPO DE SEGURIDAD, INSTALACIONES ESPECÍFICAS, DEPRECIACIÓN Y DEMÁS DERIVADOS DEL USO DE HERRAMIENTA Y EQUIPO EN CUALQUIER NIVEL, (VER DETALLE DE ZAPATA.) ","ML",28.04,0,null,0,0]
["03.-","CONSTRUCCION DE MURO DE ENRASE A BASE A 3 HILADAS A BASE DE BLOCK HUECO DE CONCRETO DE 15x20x40, ASENTADO CON MORTERO CEMENTO ARENA  PROP 1:4 Y CELDAS RELLENAS DE CONCRETO F'C= 150KG/CM2, VARILLA DE REFUERZO  DE 3/8\" @ 3ER CELDA ANCLADA A CIMENTACION, INCLUYE PRECIO DIRECTO DE LOS MATERIALES, MANO DE OBRA, HERRAMIENTA Y EQUIPO.","M2",11.22,0,null,0,0]
["04.-","ANCLAJE DE CASTILLOS (K-01) DE 15 X 20 CMS MTS. HASTA 1.00 MTS. DE DESARROLLO, ARMADO CON 4 VARILLAS No.3 Y ESTRIBOS No.2 A/C 0.20 MTS. CONCRETO F' C=200 KG/CM2, INCLUYE; CARGO DIRECTO POR EL COSTO DE LOS MATERIALES, HERRAMIENTA Y MANO DE OBRA QUE INTERVENGAN, ELABORACIÓN DEL CONCRETO, FLETE A OBRA, DESPERDICIO, VERTIDO, ACARREO HASTA EL LUGAR DE SU UTILIZACIÓN, VIBRADO Y CURADO, PRUEBAS DE RESISTENCIA DEL CONCRETO, HABILITADO DEL ACERO DE REFUERZO, ANCLAJES,  COLOCACIÓN, AMARRES, CIMBRADO, DESCIMBRADO, LIMPIEZA Y RETIRO DE SOBRANTES FUERA DE OBRA, EQUIPO DE SEGURIDAD, INSTALACIONES ESPECÍFICAS, DEPRECIACIÓN Y DEMÁS DERIVADOS DEL USO DE HERRAMIENTA Y EQUIPO EN CUALQUIER NIVEL.","PZA",13,0,null,0,0]
["05.-","CADENA PARA DESPLANTE (CD-01) EN CIMENTACIÓN DE 0.15 X 0.20 MTS., ARMADA CON 4 VARILLAS No.3 Y ESTRIBOS No.2 A/C 0.20 MTS., CONCRETO F'C=200 KG/CM2, INCLUYE: INCLUYE; CARGO DIRECTO POR EL COSTO DE LOS MATERIALES, HERRAMIENTA Y MANO DE OBRA QUE INTERVENGAN, ELABORACIÓN DEL CONCRETO, FLETE A OBRA, DESPERDICIO, VERTIDO, ACARREO HASTA EL LUGAR DE SU UTILIZACIÓN, VIBRADO Y CURADO, PRUEBAS DE RESISTENCIA DEL CONCRETO,  HABILITADO DEL ACERO DE REFUERZO, ANCLAJES,  COLOCACIÓN, AMARRES, CIMBRADO, DESCIMBRADO, LIMPIEZA Y RETIRO DE SOBRANTES FUERA DE OBRA, EQUIPO DE SEGURIDAD, INSTALACIONES ESPECÍFICAS, DEPRECIACIÓN Y DEMÁS DERIVADOS DEL USO DE HERRAMIENTA Y EQUIPO EN CUALQUIER NIVEL.","ML",28.05,0,null,0,0]
["06.-","RELLENO CON MATERIAL DE BANCO, COLOCADO EN CAPAS DE 20 CMS, TRAIDO A CUALQUIER DISTANCIA, COMPACTADO. AL 90 % DE SU PESO VOLUMÉTRICO SECO MÁXIMO. MEDIDO EN SITIO DE COLOCACIÓN, EN CAPAS DE 20 CM. DE ESPESOR. INCLUYE: CARGO DIRECTO POR EL COSTO DE LOS MATERIALES Y MANO DE OBRA QUE INTERVENGAN, AGUA, ACARREO HASTA EL LUGAR DE SU UTILIZACIÓN, SEGÚN EL CASO, TENDIDO DEL MATERIAL HUMEDECIDO, PRUEBAS (GRANULOMETRÍAS, COMPACTACIÓN Y HUMEDAD), LIMPIEZA DE ÁREA, EQUIPO DE SEGURIDAD, INSTALACIONES ESPECÍFICAS, DEPRECIACIÓN Y DEMÁS DERIVADOS DEL USO DE HERRAMIENTA Y EQUIPO","M3",100,0,null,{"$f":"ROUND(D68*E68,2)","v":0}]
[null,"SUBTOTAL DE CIMENTACIÓN",null,null,null,null,{"$f":"SUM(G63:G68)","v":0},0]
["II.-","ALBAÑILERÍA Y ACABADOS",null,null,null,null,null,0]
["01.-","MUROS Y PRETILES DE BLOCK  DE HUECO DE CONCRETO DE 15X20X40 CMS. PEGADO CON MORTERO CEMENTO - ARENA 1:5, INCLUYE: CARGO DIRECTO POR EL COSTO DE LOS MATERIALES, ALINEACIÓN, PLOMEO, ESCUADRAS, ANDAMIOS, ELEVACIÓN DE MATERIALES, RECORTES, CORTES, DESPERDICIOS, ACARREOS DENTRO DE LA OBRA, MANO DE OBRA, CUALQUIER ALTURA, LIMPIEZA GRUESA, EMBOQUILLADOS, HERRAMIENTA, EQUIPO, CONCEPTO TERMINADO A SATISFACCIÓN DE SUPERVISIÓN.","M2",36.46,0,null,{"$f":"ROUND(D71*E71,2)","v":0},0]
["02.-","CASTILLO DE CONCRETO (K-1) DE 15 X 20 CMS., ARMADO CON 4 VARILLAS No.3  Y ESTRIBOS DEL # 2 A CADA 10 - 20 CMS., CONCRETO F' C=200 KG/CM2, INCLUYE; CARGO DIRECTO POR EL COSTO DE LOS MATERIALES, HERRAMIENTA Y MANO DE OBRA QUE INTERVENGAN, FLETE A OBRA, DESPERDICIO, ACARREO HASTA EL LUGAR DE SU UTILIZACIÓN, HABILITADO DEL ACERO DE REFUERZO, ANCLAJES,  CIMBRADO, DESCIMBRADO, ELABORACIÓN DEL CONCRETO,  VERTIDO, VIBRADO,  CURADO, PRUEBAS DE LABORATORIO, LIMPIEZA Y RETIRO DE SOBRANTES FUERA DE OBRA, EQUIPO DE SEGURIDAD, INSTALACIONES ESPECIFICAS, DEPRECIACIÓN Y DEMÁS DERIVADOS DEL USO DE HERRAMIENTA Y EQUIPO, EN CUALQUIER NIVEL.","ML",16.899999999999999,0,null,0,0]
["03.-","CADENA DE CERRAMIENTO (CE-01) DE CONCRETO F'C=200KG/CM2 DE 15 x 20 CMS, ARMADA CON 4 VARILLAS DE 3/8\" Y ESTRIBOS DE 1/4\" @ 20 CMS,  INCLUYE; CARGO DIRECTO POR EL COSTO DE LOS MATERIALES, HERRAMIENTA Y MANO DE OBRA QUE INTERVENGAN, ELABORACIÓN DEL CONCRETO, FLETE A OBRA, DESPERDICIO, VERTIDO, ACARREO HASTA EL LUGAR DE SU UTILIZACIÓN, HABILITADO DEL ACERO DE REFUERZO, ANCLAJES,  COLOCACIÓN, AMARRES, CIMBRADO, DESCIMBRADO, LIMPIEZA Y RETIRO DE SOBRANTES FUERA DE OBRA, EQUIPO DE SEGURIDAD, INSTALACIONES ESPECÍFICAS, DEPRECIACIÓN Y DEMÁS DERIVADOS DEL USO DE HERRAMIENTA Y EQUIPO EN CUALQUIER NIVEL.","ML",28.04,0,null,0,0]
["05.-","PISO DE CONCRETO PRECOLADO DE F'C=200 KG/CM2 CON IMPERMEABILIZANTE INTEGRAL SIKA DE 10 CMS. DE ESPESOR, ACABADO PULIDO FINO INTEGRAL O RAYADO CON BROCHA DE PELO, INCLUYE:  MATERIALES NECESARIOS, MANO DE OBRA, CON REFUERZO DE MALLA ELECTROSOLDADA 6.6-10X10, CIMBRA, DECIMBRA, BOLTEADOR, JUNTAS FRIAS,  ACARREOS INTERNOS, NIVELADO, REGLEADO,  CONCEPTO A SATISFACCIÓN DE SUPERVISIÓN.","M2",87,0,null,0,0]
["06.-","APLANADOS SOBRE MUROS DE BLOCK, Y A CUALQUIER SUPERFICIE, A BASE DE MORTERO CEMENTO - ARENA 1:5, ACABADO FLOTEADO FINO, INCLUYE: RESANES, PREPARACIÓN DE LA SUPERFICIE, REBABEOS, PLOMEO, FILOS, BOQUILLAS, A REGLA Y NIVEL, REPELLADOS, CURADOS, ANDAMIOS, ELEVACIÓN, ACARREOS DE MATERIALES, DENTRO DE LA OBRA, LIMPIEZA GRUESA Y FINA, MATERIALES NECESARIOS, MANO DE OBRA, CONCEPTO TERMINADO A SATISFACCIÓN DE SUPERVISIÓN.","M2",36.46,0,null,0,0]
["06.-","SUMINISTRO Y APLICACIÓN DE PINTURA VINÍLICA, MARCA OSEL , APLICADA A DOS MANOS DE PRIMERA CALIDAD, APLICADA EN MUROS (INTERIORES, EXTERIORES, PLAFOND, TRABES, COLUMNAS, DALAS Y SOBRE CUALQUIER ELEMENTO ETC.. ), SOBRE CUALQUIER SUPERFICIE Y/O APLANADOS DE MORTERO, ACABADO FLOTEADO FINO, INCLUYE: ANDAMIOS, ALTURAS  HASTA 4.50 M.  S.N.P.T., RECORTES, ACARREOS DENTRO DE LA OBRA, DESPERDICIOS, SELLADOR, DOS MANOS DE FONDO BLANCO, RESANES, PROTECCIÓN A PISOS, MUEBLES, VENTANAS Y PUERTAS, REBABEOS, ADITAMENTOS DE APLICACIÓN, LIMPIEZA FINA Y GRUESA, MANO DE OBRA , MATERIALES Y TODO LO NECESARIO PARA SU CORRECTA APLICACIÓN, COLORES AUTORIZADOS POR SUPERVISIÓN.","M2",36.46,0,null,0,0]
["07.-","FORJADO DE  ESCALÓN DE CONCRETO, HECHO EN OBRA, INCLUYE; CARGO DIRECTO POR EL COSTO DE LOS MATERIALES QUE INTERVENGAN, FLETE A OBRA, DESPERDICIO, ACARREO HASTA EL LUGAR DE SU UTILIZACIÓN, TRAZO NIVELES, HABILITADO DE ACERO, CORTE, ANCLAJE, ELABORACIÓN DE CONCRETO, COLADO, CIMBRADO Y DESCIMBRADO, VIBRADO, CURADO, LIMPIEZA Y RETIRO DE SOBRANTES FUERA DE OBRA, EQUIPO DE SEGURIDAD, INSTALACIONES ESPECÍFICAS, DEPRECIACIÓN Y DEMÁS DERIVADOS DEL USO DE HERRAMIENTA Y EQUIPO,  EN CUALQUIER NIVEL. DE CONCRETO ARMADO DE HASTA 30 CM. DE HUELLA X 18 CM. DE PERALTE, SOBRE RAMPA DE CONCRETO DE 10 CMS DE ESPESOR Y VARILLA DE 3/8\" A CADA 20 CMS EN AMBOS SENTIDOS, NCHAFLANES, F'C= 200 KG/CM2., AGREGADO MÁXIMO DE 19 MM., ARMADO CON 2 VARILLAS DEL No. 3 A.R. Y ESTRIBOS DEL No. 3 A.R. A CADA 20 CM. DE ACUERDO A PROYECTO, CIMBRA APARENTE ACABADO ESCOBILLADO.","ML",25,0,null,0,0]
[null,"SUBTOTAL DE ALBAÑILERIA Y ACABADOS",null,null,null,null,{"$f":"SUM(G71:G77)","v":0},0]
["D.-","MURO DE MAMPOSTERIA Y BARDA ",null,null,null,null,null,0]
["I.-","CIMENTACION",null,null,null,null,null,0]
["01.-","SUMINISTRO Y ELABORACION   DE MURO DE CONTENCION DE PIEDRA \"BRAZA\"  DE 2.00 MTS DE ALTURA, ACABADO APARENTE, ASENTADO CON MORTERO CEMENTO ARENA PROPORCION 1:5,  INCLUYE: CIMENTACION DE PIEDRA \"BRAZA\" CON SECCIONAMIENTO DE 0.40 MTS.  DE ANCHO EN CORONA, 0.80 MTS. DE BASE Y 1.00 MTS. DE PROFUNDIDAD, INCLUYE: RAJUELIADO, TRAZO, NIVELACION, EXCAVACION, PLANTILLA, RELLENO, AFINE, HERRAMIENTA, MATERIALES, EQUIPO Y MANO DE OBRA Y TODO LO NECESARIO PARA SU CORRECTO FUNCIONAMIENTO, CONCEPTO A  SATISFACCION DE SUPERVISOR. (VER DETALLE DE CONSTRUCCION DE MURO DE CONTENCION EN PLANO)","ML",27.26,0,null,{"$f":"ROUND(D81*E81,2)","v":0},0]
["02.-","ANCLAJE DE CASTILLOS (K-01) DE 15 X 20 CMS MTS. HASTA 1.00 MTS. DE DESARROLLO, ARMADO CON 4 VARILLAS No.3 Y ESTRIBOS No.2 A/C 0.20 MTS. CONCRETO F' C=200 KG/CM2, INCLUYE; CARGO DIRECTO POR EL COSTO DE LOS MATERIALES, HERRAMIENTA Y MANO DE OBRA QUE INTERVENGAN, ELABORACIÓN DEL CONCRETO, FLETE A OBRA, DESPERDICIO, VERTIDO, ACARREO HASTA EL LUGAR DE SU UTILIZACIÓN, VIBRADO Y CURADO, PRUEBAS DE RESISTENCIA DEL CONCRETO, HABILITADO DEL ACERO DE REFUERZO, ANCLAJES,  COLOCACIÓN, AMARRES, CIMBRADO, DESCIMBRADO, LIMPIEZA Y RETIRO DE SOBRANTES FUERA DE OBRA, EQUIPO DE SEGURIDAD, INSTALACIONES ESPECÍFICAS, DEPRECIACIÓN Y DEMÁS DERIVADOS DEL USO DE HERRAMIENTA Y EQUIPO EN CUALQUIER NIVEL.","PZA",12,0,null,0,0]
[null,"SUBTOTAL DE CIMENTACIÓN",null,null,null,null,{"$f":"SUM(G81:G82)","v":0},{"$f":"ROUND(D83*E83,2)","v":0}]
["II.-","ALBAÑILERÍA Y ACABADOS",null,null,null,null,null,0]
["01.-","MUROS Y PRETILES DE BLOCK  DE HUECO DE CONCRETO DE 15X20X40 CMS. PEGADO CON MORTERO CEMENTO - ARENA 1:5, INCLUYE: ALINEACIÓN, PLOMEO, ESCUADRAS, ANDAMIOS, ELEVACIÓN DE MATERIALES, RECORTES, CORTES, DESPERDICIOS, ACARREOS DENTRO DE LA OBRA, MANO DE OBRA, CUALQUIER ALTURA, LIMPIEZA GRUESA, EMBOQUILLADOS, CONCEPTO TERMINADO A SATISFACCIÓN DE SUPERVISIÓN.","M2",65.430000000000007,0,null,{"$f":"ROUND(D85*E85,2)","v":0},0]
["02.-","CASTILLO DE CONCRETO (K-1) DE 15 X 20 CMS., ARMADO CON 4 VARILLAS No.3  Y ESTRIBOS DEL # 2 A CADA 10 - 20 CMS., CONCRETO F' C=200 KG/CM2, INCLUYE; CARGO DIRECTO POR EL COSTO DE LOS MATERIALES, HERRAMIENTA Y MANO DE OBRA QUE INTERVENGAN, FLETE A OBRA, DESPERDICIO, ACARREO HASTA EL LUGAR DE SU UTILIZACIÓN, HABILITADO DEL ACERO DE REFUERZO, ANCLAJES,  CIMBRADO, DESCIMBRADO, ELABORACIÓN DEL CONCRETO,  VERTIDO, VIBRADO,  CURADO, PRUEBAS DE LABORATORIO, LIMPIEZA Y RETIRO DE SOBRANTES FUERA DE OBRA, EQUIPO DE SEGURIDAD, INSTALACIONES ESPECIFICAS, DEPRECIACIÓN Y DEMÁS DERIVADOS DEL USO DE HERRAMIENTA Y EQUIPO, EN CUALQUIER NIVEL.","ML",28.8,0,null,0,0]
[null,"CADENA DE CERRAMIENTO (CE-01) DE CONCRETO F'C=200KG/CM2 DE 15 x 20 CMS, ARMADA CON 4 VARILLAS DE 3/8\" Y ESTRIBOS DE 1/4\" @ 20 CMS,  INCLUYE; CARGO DIRECTO POR EL COSTO DE LOS MATERIALES, HERRAMIENTA Y MANO DE OBRA QUE INTERVENGAN, ELABORACIÓN DEL CONCRETO, FLETE A OBRA, DESPERDICIO, VERTIDO, ACARREO HASTA EL LUGAR DE SU UTILIZACIÓN, HABILITADO DEL ACERO DE REFUERZO, ANCLAJES,  COLOCACIÓN, AMARRES, CIMBRADO, DESCIMBRADO, LIMPIEZA Y RETIRO DE SOBRANTES FUERA DE OBRA, EQUIPO DE SEGURIDAD, INSTALACIONES ESPECÍFICAS, DEPRECIACIÓN Y DEMÁS DERIVADOS DEL USO DE HERRAMIENTA Y EQUIPO EN CUALQUIER NIVEL.","ML",27.26,0,null,0,0]
["04.-","APLANADOS SOBRE MUROS DE BLOCK, Y A CUALQUIER SUPERFICIE, A BASE DE MORTERO CEMENTO - ARENA 1:5, ACABADO FLOTEADO FINO, INCLUYE: RESANES, PREPARACIÓN DE LA SUPERFICIE, REBABEOS, PLOMEO, FILOS, BOQUILLAS, A REGLA Y NIVEL, REPELLADOS, CURADOS, ANDAMIOS, ELEVACIÓN, ACARREOS DE MATERIALES, DENTRO DE LA OBRA, LIMPIEZA GRUESA Y FINA, MATERIALES NECESARIOS, MANO DE OBRA, CONCEPTO TERMINADO A SATISFACCIÓN DE SUPERVISIÓN.","M2",130.86000000000001,0,null,0,0]
["05.-","SUMINISTRO Y APLICACIÓN DE PINTURA VINÍLICA, MARCA OSEL , APLICADA A DOS MANOS COMO  MINIMO ,DE PRIMERA CALIDAD, APLICADA EN MUROS (INTERIORES, EXTERIORES, PLAFOND, TRABES, COLUMNAS, DALAS Y SOBRE CUALQUIER ELEMENTO ETC.. ), SOBRE CUALQUIER SUPERFICIE Y/O APLANADOS DE MORTERO, ACABADO FLOTEADO FINO, INCLUYE: ANDAMIOS, ALTURAS  HASTA 4.50 M.  S.N.P.T., RECORTES, ACARREOS DENTRO DE LA OBRA, DESPERDICIOS, SELLADOR, RESANES, PROTECCIÓN A PISOS, MUEBLES, VENTANAS Y PUERTAS, REBABEOS, ADITAMENTOS DE APLICACIÓN, LIMPIEZA FINA Y GRUESA, MANO DE OBRA , MATERIALES Y TODO LO NECESARIO PARA SU CORRECTA APLICACIÓN, COLORES AUTORIZADOS POR SUPERVISIÓN.","M2",130.86000000000001,0,null,0,0]
[null,"SUBTOTAL DE ALBAÑILERIA Y ACABADOS",null,null,null,null,{"$f":"SUM(G85:G89)","v":0},0]
["E.-","GRADAS",null,null,null,null,null,0]
["I.-","CIMENTACION",null,null,null,null,null,0]
["01.-","TRAZO Y NIVELACIÓN, CON EQUIPO TOPOGRÁFICO,  INCLUYE: CARGO DIRECTO POR EL COSTO DE LOS MATERIALES Y MANO DE OBRA QUE INTERVENGAN, LOCALIZACIÓN GENERAL, LOCALIZACIÓN DE ENTRE EJES, SEÑALAMIENTOS, ESTACADO, BANCOS DE NIVEL, MOJONERAS, LIMPIEZA Y RETIRO DE SOBRANTES FUERA DE OBRA, AL BANCO DE  DESPERDICIO INDICADO POR EL LA DIRECCIÓN DE OBRAS PUBLICAS, EQUIPO DE SEGURIDAD, INSTALACIONES ESPECÍFICAS, DEPRECIACIÓN Y DEMÁS DERIVADOS DEL USO DE HERRAMIENTA Y EQUIP. ESTUDIOS TOPOGRAFICOS Y ESTUDIOS TOPO - HIDRAULICOS. A EJES EN DESPLANTE DE EDIFICIOS.","M2",29.9,0,null,{"$f":"ROUND(D93*E93,2)","v":0},0]
["02.-","CONTRA TRABE DE 15 X 40 CMS. ARMADA CON 6 VARILLAS DEL # 3 Y ESTRIBOS DEL # 2 A CADA 20 CMS., INCLUYE: TRAZO, NIVELACION, EXCAVACION, PLANTILLA  F'C=100 KG/CM2, RELLENO, AFINE, COMPACTACION, IMPERMEABILIZANTE INTEGRAL SIKA, PRUEBAS DE LABORATORIO DE (MECANICA DE SUELOS), HERRAMIENTA Y MANO DE OBRA QUE INTERVENGAN, ELABORACIÓN DEL CONCRETO, FLETE A OBRA, DESPERDICIO, VERTIDO, ACARREO HASTA EL LUGAR DE SU UTILIZACIÓN, HABILITADO DEL ACERO DE REFUERZO, ANCLAJES,  COLOCACIÓN, AMARRES, CIMBRADO, DESCIMBRADO, LIMPIEZA Y RETIRO DE SOBRANTES FUERA DE OBRA, EQUIPO DE SEGURIDAD, INSTALACIONES ESPECÍFICAS, DEPRECIACIÓN Y DEMÁS DERIVADOS DEL USO DE HERRAMIENTA Y EQUIPO EN CUALQUIER NIVEL, (VER DETALLE EN PLANOS)","ML",61.1,0,null,0,0]
[null,"SUBTOTAL DE CIMENTACIÓN",null,null,null,null,{"$f":"SUM(G93:G94)","v":0},0]
["II.-","ALBAÑILERÍA Y ACABADOS",null,null,null,null,null,0]
["01.-","MUROS Y PRETILES DE BLOCK  DE HUECO DE CONCRETO DE 15X20X40 CMS. PEGADO CON MORTERO CEMENTO - ARENA 1:5, INCLUYE: ALINEACIÓN, PLOMEO, ESCUADRAS, ANDAMIOS, ELEVACIÓN DE MATERIALES, RECORTES, CORTES, DESPERDICIOS, ACARREOS DENTRO DE LA OBRA, MANO DE OBRA, CUALQUIER ALTURA, LIMPIEZA GRUESA, EMBOQUILLADOS, CONCEPTO TERMINADO A SATISFACCIÓN DE SUPERVISIÓN.","M2",40.5,0,null,{"$f":"ROUND(D97*E97,2)","v":0},0]
["02.-","CASTILLO DE CONCRETO (K-1) DE 15 X 14 CMS., ARMADO CON 4 VARILLAS ARMEX, CONCRETO F' C=200 KG/CM2, INCLUYE; CARGO DIRECTO POR EL COSTO DE LOS MATERIALES, HERRAMIENTA Y MANO DE OBRA QUE INTERVENGAN, FLETE A OBRA, DESPERDICIO, ACARREO HASTA EL LUGAR DE SU UTILIZACIÓN, HABILITADO DEL ACERO DE REFUERZO, ANCLAJES,  CIMBRADO, DESCIMBRADO, ELABORACIÓN DEL CONCRETO,  VERTIDO, VIBRADO,  CURADO, PRUEBAS DE LABORATORIO, LIMPIEZA Y RETIRO DE SOBRANTES FUERA DE OBRA, EQUIPO DE SEGURIDAD, INSTALACIONES ESPECIFICAS, DEPRECIACIÓN Y DEMÁS DERIVADOS DEL USO DE HERRAMIENTA Y EQUIPO, EN CUALQUIER NIVEL.","ML",27,0,null,0,0]
["03.-","CADENA DE CERRAMIENTO (CE-01) DE CONCRETO F'C=200KG/CM2 DE 15 x 15 CMS, ARMADA CON 4 VARILLAS ARMEX, INCLUYE; CARGO DIRECTO POR EL COSTO DE LOS MATERIALES, HERRAMIENTA Y MANO DE OBRA QUE INTERVENGAN, ELABORACIÓN DEL CONCRETO, FLETE A OBRA, DESPERDICIO, VERTIDO, ACARREO HASTA EL LUGAR DE SU UTILIZACIÓN, HABILITADO DEL ACERO DE REFUERZO, ANCLAJES,  COLOCACIÓN, AMARRES, CIMBRADO, DESCIMBRADO, LIMPIEZA Y RETIRO DE SOBRANTES FUERA DE OBRA, EQUIPO DE SEGURIDAD, INSTALACIONES ESPECÍFICAS, DEPRECIACIÓN Y DEMÁS DERIVADOS DEL USO DE HERRAMIENTA Y EQUIPO EN CUALQUIER NIVEL.","ML",27,0,null,0,0]
["04.-","APLANADOS SOBRE MUROS DE BLOCK, Y A CUALQUIER SUPERFICIE, A BASE DE MORTERO CEMENTO - ARENA 1:5, ACABADO FLOTEADO FINO, INCLUYE: RESANES, PREPARACIÓN DE LA SUPERFICIE, REBABEOS, PLOMEO, FILOS, BOQUILLAS, A REGLA Y NIVEL, REPELLADOS, CURADOS, ANDAMIOS, ELEVACIÓN, ACARREOS DE MATERIALES, DENTRO DE LA OBRA, LIMPIEZA GRUESA Y FINA, MATERIALES NECESARIOS, MANO DE OBRA, CONCEPTO TERMINADO A SATISFACCIÓN DE SUPERVISIÓN.","M2",42,0,null,0,0]
["05.-","SUMINISTRO Y APLICACIÓN DE PINTURA VINÍLICA, MARCA OSEL , APLICADA A DOS MANOS COMO  MINIMO ,DE PRIMERA CALIDAD, APLICADA EN MUROS (INTERIORES, EXTERIORES, PLAFOND, TRABES, COLUMNAS, DALAS Y SOBRE CUALQUIER ELEMENTO ETC.. ), SOBRE CUALQUIER SUPERFICIE Y/O APLANADOS DE MORTERO, ACABADO FLOTEADO FINO, INCLUYE: ANDAMIOS, ALTURAS  HASTA 4.50 M.  S.N.P.T., RECORTES, ACARREOS DENTRO DE LA OBRA, DESPERDICIOS, SELLADOR, RESANES, PROTECCIÓN A PISOS, MUEBLES, VENTANAS Y PUERTAS, REBABEOS, ADITAMENTOS DE APLICACIÓN, LIMPIEZA FINA Y GRUESA, MANO DE OBRA , MATERIALES Y TODO LO NECESARIO PARA SU CORRECTA APLICACIÓN, COLORES AUTORIZADOS POR SUPERVISIÓN.","M2",45,0,null,0,0]
["06.-","RELLENO CON MATERIAL DE BANCO, COLOCADO EN CAPAS DE 20 CMS, TRAIDO A CUALQUIER DISTANCIA, COMPACTADO. AL 90 % DE SU PESO VOLUMÉTRICO SECO MÁXIMO. MEDIDO EN SITIO DE COLOCACIÓN, EN CAPAS DE 20 CM. DE ESPESOR. INCLUYE: CARGO DIRECTO POR EL COSTO DE LOS MATERIALES Y MANO DE OBRA QUE INTERVENGAN, AGUA, ACARREO HASTA EL LUGAR DE SU UTILIZACIÓN, SEGÚN EL CASO, TENDIDO DEL MATERIAL HUMEDECIDO, PRUEBAS (GRANULOMETRÍAS, COMPACTACIÓN Y HUMEDAD), LIMPIEZA DE ÁREA, EQUIPO DE SEGURIDAD, INSTALACIONES ESPECÍFICAS, DEPRECIACIÓN Y DEMÁS DERIVADOS DEL USO DE HERRAMIENTA Y EQUIPO","M3",24.3,0,null,0]
["07.-","LOSA DE CONCRETO F'C=200 CON IMPERMEABILIZANTE INTEGRAL DE 10 CMS DE ESPESOR, REFORZADA CON MALLA ELECTROSOLDADA 6-6/10-10, INCLUYE: CARGO DIRECTO POR EL COSTO DE LOS MATERIALES Y MATERIALES, MANO DE OBRA, EQUIPO, HERRAMIENTA, CIMBRA, DESCIMBRA, CURADO Y TODO LO NECESARIO PARA LA CORRECTA EJECUCIÓN DE LOS TRABAJOS","M2",29.9,0,null,0,0]
["08.-","ELABORACION DE ESCALON DE DESCANDO  DE 0.80 X 0.45 X 0.225 MTS A  BASE DE CONCRETO  F'C=200 KG/CM2, ANCLADO A LOSA CON VARILLAS DE 3/8\", CON IMPERMEABILIZANTE INTEGRAL DE 5 CMS DE ESPESOR, INCLUYE: CARGO DIRECTO POR EL COSTO DE LOS MATERIALES Y MATERIALES, MANO DE OBRA, EQUIPO, HERRAMIENTA, CIMBRA, DESCIMBRA, CURADO Y TODO LO NECESARIO PARA LA CORRECTA EJECUCIÓN DE LOS TRABAJOS","PZA",12,0,null,{"$f":"ROUND(D104*E104,2)","v":0},{"$f":"ROUND(D104*E104,2)","v":0}]
[null,"SUBTOTAL DE ALBAÑILERIA Y ACABADOS",null,null,null,null,{"$f":"SUM(G97:G104)","v":0},0]
["F.-","BARDA ",null,null,null,null,null,0]
["I.-","CIMENTACION",null,null,null,null,null,0]
["01.-","TRAZO Y NIVELACIÓN, CON EQUIPO TOPOGRÁFICO,  INCLUYE: CARGO DIRECTO POR EL COSTO DE LOS MATERIALES Y MANO DE OBRA QUE INTERVENGAN, LOCALIZACIÓN GENERAL, LOCALIZACIÓN DE ENTRE EJES, SEÑALAMIENTOS, ESTACADO, BANCOS DE NIVEL, MOJONERAS, LIMPIEZA Y RETIRO DE SOBRANTES FUERA DE OBRA, AL BANCO DE  DESPERDICIO INDICADO POR EL LA DIRECCIÓN DE OBRAS PUBLICAS, EQUIPO DE SEGURIDAD, INSTALACIONES ESPECÍFICAS, DEPRECIACIÓN Y DEMÁS DERIVADOS DEL USO DE HERRAMIENTA Y EQUIP. ESTUDIOS TOPOGRAFICOS Y ESTUDIOS TOPO - HIDRAULICOS. A EJES EN DESPLANTE DE EDIFICIOS.","M2",87,0,null,{"$f":"ROUND(D108*E108,2)","v":0},0]
["02.-","ZAPATA CORRIDA (Z-01) DE  DE 0.80 X 0.15 MTS. CONCRETO F'C=200 KG/CM2. CON IMPERMEABILIZANTE INTEGRAL SIKA  ARMADA CON  4 VARILLA DEL # 3 Y CONTRA TRABE DE 15 X 40 CMS. ARMADA CON 4 VARILLAS DEL # 3 Y ESTRIBOS DEL # 2 A CADA 20 CMS., INCLUYE: TRAZO, NIVELACION, EXCAVACION, PLANTILLA  F'C=100 KG/CM2, RELLENO, AFINE,COMPACTACION, IMPERMEABILIZANTE, PRUEBAS DE LABORATORIO DE (MECANICA DE SUELOS), HERRAMIENTA Y MANO DE OBRA QUE INTERVENGAN, ELABORACIÓN DEL CONCRETO, FLETE A OBRA, DESPERDICIO, VERTIDO, ACARREO HASTA EL LUGAR DE SU UTILIZACIÓN, HABILITADO DEL ACERO DE REFUERZO, ANCLAJES,  COLOCACIÓN, AMARRES, CIMBRADO, DESCIMBRADO, LIMPIEZA Y RETIRO DE SOBRANTES FUERA DE OBRA, EQUIPO DE SEGURIDAD, INSTALACIONES ESPECÍFICAS, DEPRECIACIÓN Y DEMÁS DERIVADOS DEL USO DE HERRAMIENTA Y EQUIPO EN CUALQUIER NIVEL, (VER DETALLE DE ZAPATA.) ","ML",28.04,0,null,0,0]
["03.-","CONSTRUCCION DE MURO DE ENRASE A BASE A 3 HILADAS A BASE DE BLOCK HUECO DE CONCRETO DE 15x20x40, ASENTADO CON MORTERO CEMENTO ARENA  PROP 1:4 Y CELDAS RELLENAS DE CONCRETO F'C= 150KG/CM2, VARILLA DE REFUERZO  DE 3/8\" @ 3ER CELDA ANCLADA A CIMENTACION, INCLUYE PRECIO DIRECTO DE LOS MATERIALES, MANO DE OBRA, HERRAMIENTA Y EQUIPO.","M2",11.22,0,null,0,0]
["04.-","ANCLAJE DE CASTILLOS (K-01) DE 15 X 20 CMS MTS. HASTA 1.00 MTS. DE DESARROLLO, ARMADO CON 4 VARILLAS No.3 Y ESTRIBOS No.2 A/C 0.20 MTS. CONCRETO F' C=200 KG/CM2, INCLUYE; CARGO DIRECTO POR EL COSTO DE LOS MATERIALES, HERRAMIENTA Y MANO DE OBRA QUE INTERVENGAN, ELABORACIÓN DEL CONCRETO, FLETE A OBRA, DESPERDICIO, VERTIDO, ACARREO HASTA EL LUGAR DE SU UTILIZACIÓN, VIBRADO Y CURADO, PRUEBAS DE RESISTENCIA DEL CONCRETO, HABILITADO DEL ACERO DE REFUERZO, ANCLAJES,  COLOCACIÓN, AMARRES, CIMBRADO, DESCIMBRADO, LIMPIEZA Y RETIRO DE SOBRANTES FUERA DE OBRA, EQUIPO DE SEGURIDAD, INSTALACIONES ESPECÍFICAS, DEPRECIACIÓN Y DEMÁS DERIVADOS DEL USO DE HERRAMIENTA Y EQUIPO EN CUALQUIER NIVEL.","PZA",13,0,null,0,0]
["05.-","CADENA PARA DESPLANTE (CD-01) EN CIMENTACIÓN DE 0.15 X 0.20 MTS., ARMADA CON 4 VARILLAS No.3 Y ESTRIBOS No.2 A/C 0.20 MTS., CONCRETO F'C=200 KG/CM2, INCLUYE: INCLUYE; CARGO DIRECTO POR EL COSTO DE LOS MATERIALES, HERRAMIENTA Y MANO DE OBRA QUE INTERVENGAN, ELABORACIÓN DEL CONCRETO, FLETE A OBRA, DESPERDICIO, VERTIDO, ACARREO HASTA EL LUGAR DE SU UTILIZACIÓN, VIBRADO Y CURADO, PRUEBAS DE RESISTENCIA DEL CONCRETO,  HABILITADO DEL ACERO DE REFUERZO, ANCLAJES,  COLOCACIÓN, AMARRES, CIMBRADO, DESCIMBRADO, LIMPIEZA Y RETIRO DE SOBRANTES FUERA DE OBRA, EQUIPO DE SEGURIDAD, INSTALACIONES ESPECÍFICAS, DEPRECIACIÓN Y DEMÁS DERIVADOS DEL USO DE HERRAMIENTA Y EQUIPO EN CUALQUIER NIVEL.","ML",28.05,0,null,0,0]
[null,"SUBTOTAL DE CIMENTACIÓN",null,null,null,null,{"$f":"SUM(G108:G112)","v":0},0]
["II.-","ALBAÑILERÍA Y ACABADOS",null,null,null,null,null,0]
["01.-","MUROS Y PRETILES DE BLOCK  DE HUECO DE CONCRETO DE 15X20X40 CMS. PEGADO CON MORTERO CEMENTO - ARENA 1:5, INCLUYE: ALINEACIÓN, PLOMEO, ESCUADRAS, ANDAMIOS, ELEVACIÓN DE MATERIALES, RECORTES, CORTES, DESPERDICIOS, ACARREOS DENTRO DE LA OBRA, MANO DE OBRA, CUALQUIER ALTURA, LIMPIEZA GRUESA, EMBOQUILLADOS, CONCEPTO TERMINADO A SATISFACCIÓN DE SUPERVISIÓN.","M2",36.46,0,null,{"$f":"ROUND(D115*E115,2)","v":0},0]
["02.-","CASTILLO DE CONCRETO (K-1) DE 15 X 20 CMS., ARMADO CON 4 VARILLAS No.3  Y ESTRIBOS DEL # 2 A CADA 10 - 20 CMS., CONCRETO F' C=200 KG/CM2, INCLUYE; CARGO DIRECTO POR EL COSTO DE LOS MATERIALES, HERRAMIENTA Y MANO DE OBRA QUE INTERVENGAN, FLETE A OBRA, DESPERDICIO, ACARREO HASTA EL LUGAR DE SU UTILIZACIÓN, HABILITADO DEL ACERO DE REFUERZO, ANCLAJES,  CIMBRADO, DESCIMBRADO, ELABORACIÓN DEL CONCRETO,  VERTIDO, VIBRADO,  CURADO, PRUEBAS DE LABORATORIO, LIMPIEZA Y RETIRO DE SOBRANTES FUERA DE OBRA, EQUIPO DE SEGURIDAD, INSTALACIONES ESPECIFICAS, DEPRECIACIÓN Y DEMÁS DERIVADOS DEL USO DE HERRAMIENTA Y EQUIPO, EN CUALQUIER NIVEL.","ML",16.899999999999999,0,null,0,0]
["03.-","CADENA DE CERRAMIENTO (CE-01) DE CONCRETO F'C=200KG/CM2 DE 15 x 20 CMS, ARMADA CON 4 VARILLAS DE 3/8\" Y ESTRIBOS DE 1/4\" @ 20 CMS,  INCLUYE; CARGO DIRECTO POR EL COSTO DE LOS MATERIALES, HERRAMIENTA Y MANO DE OBRA QUE INTERVENGAN, ELABORACIÓN DEL CONCRETO, FLETE A OBRA, DESPERDICIO, VERTIDO, ACARREO HASTA EL LUGAR DE SU UTILIZACIÓN, HABILITADO DEL ACERO DE REFUERZO, ANCLAJES,  COLOCACIÓN, AMARRES, CIMBRADO, DESCIMBRADO, LIMPIEZA Y RETIRO DE SOBRANTES FUERA DE OBRA, EQUIPO DE SEGURIDAD, INSTALACIONES ESPECÍFICAS, DEPRECIACIÓN Y DEMÁS DERIVADOS DEL USO DE HERRAMIENTA Y EQUIPO EN CUALQUIER NIVEL.","ML",28.04,0,null,0,0]
["04.-","PISO DE CONCRETO PRECOLADO DE F'C=200 KG/CM2 CON IMPERMEABILIZANTE INTEGRAL SIKA, DE 10 CMS. DE ESPESOR, ACABADO PULIDO FINO INTEGRAL O RAYADO CON BROCHA DE PELO, INCLUYE:  MATERIALES NECESARIOS, MANO DE OBRA, CON REFUERZO DE MALLA ELECTROSOLDADA 6.6-10X10, CIMBRA, DECIMBRA, BOLTEADOR, JUNTAS FRIAS,  ACARREOS INTERNOS, NIVELADO, REGLEADO,  CONCEPTO A SATISFACCIÓN DE SUPERVISIÓN.","M2",87,0,null,0,0]
["05.-","APLANADOS SOBRE MUROS DE BLOCK, Y A CUALQUIER SUPERFICIE, A BASE DE MORTERO CEMENTO - ARENA 1:5, ACABADO FLOTEADO FINO, INCLUYE: RESANES, PREPARACIÓN DE LA SUPERFICIE, REBABEOS, PLOMEO, FILOS, BOQUILLAS, A REGLA Y NIVEL, REPELLADOS, CURADOS, ANDAMIOS, ELEVACIÓN, ACARREOS DE MATERIALES, DENTRO DE LA OBRA, LIMPIEZA GRUESA Y FINA, MATERIALES NECESARIOS, MANO DE OBRA, CONCEPTO TERMINADO A SATISFACCIÓN DE SUPERVISIÓN.","M2",50,0,null,0,0]
["06.-","SUMINISTRO Y APLICACIÓN DE PINTURA VINÍLICA, MARCA OSEL , APLICADA A DOS MANOS COMO  MINIMO ,DE PRIMERA CALIDAD, APLICADA EN MUROS (INTERIORES, EXTERIORES, PLAFOND, TRABES, COLUMNAS, DALAS Y SOBRE CUALQUIER ELEMENTO ETC.. ), SOBRE CUALQUIER SUPERFICIE Y/O APLANADOS DE MORTERO, ACABADO FLOTEADO FINO, INCLUYE: ANDAMIOS, ALTURAS  HASTA 4.50 M.  S.N.P.T., RECORTES, ACARREOS DENTRO DE LA OBRA, DESPERDICIOS, SELLADOR, RESANES, PROTECCIÓN A PISOS, MUEBLES, VENTANAS Y PUERTAS, REBABEOS, ADITAMENTOS DE APLICACIÓN, LIMPIEZA FINA Y GRUESA, MANO DE OBRA , MATERIALES Y TODO LO NECESARIO PARA SU CORRECTA APLICACIÓN, COLORES AUTORIZADOS POR SUPERVISIÓN.","M2",50,0,null,0,0]
[null,"SUBTOTAL DE ALBAÑILERIA Y ACABADOS",null,null,null,null,{"$f":"SUM(G115:G120)","v":0},0]
["G.-","JARDINERIA Y OBRA EXTERIOR",null,null,null,null,null,0]
["01.-","ELABORACION DE JARDINERA TIPO BANCA DE CONCRETO F'C=200 KG/CM2. DE 10 CMS. DE ESPESOR CON AGREGADO MÁXIMO DE 19 MM, EN MEDIDAS DE 0.60 MTS DE ANCHO X 1.00 MTS. DE ALTURA, ARMADA EN LA PARTE SUPERIOR CON ACERO DE REFUERZO #3 @ 15 CMS AMBOS SENTIDOS ACABADO PULIDO, CADENA DE DESPLANTE DE 20 X 25 CMS Y ARMADA CON 4 VAR. #3 Y EST. #2 @ 15 CMS RESPECTIVAMENTE, DOBLE ENRASE DE BLOCK A BASE DE 2 HILAS CON SUS CELDAS RELLENAS DE CONCRETO F'C= 200 KG/CM2, RELLENO CON MATERIAL INERTE, INCLUYE; APLANADO CON MORTERO CEM-ARENA 1:4, PINTURA VINILICA A DOS MANOS COLOR INDICADO POR LA DIRECCION DE OBRAS PUBLICAS, IMPERMEABILIZANTE A BASE DE 2 CAPAS DE SELLOTEK, HERRAMIENTA Y MANO DE OBRA QUE INTERVENGAN, ELABORACIÓN DEL CONCRETO, FLETE A OBRA, DESPERDICIO, VERTIDO, ACARREO HASTA EL LUGAR DE SU UTILIZACIÓN, HABILITADO DEL ACERO DE REFUERZO, ANCLAJES,  COLOCACIÓN, AMARRES, CIMBRADO, DESCIMBRADO, LIMPIEZA Y RETIRO DE SOBRANTES FUERA DE OBRA, EQUIPO DE SEGURIDAD, INSTALACIONES ESPECÍFICAS, DEPRECIACIÓN Y DEMÁS DERIVADOS DEL USO DE HERRAMIENTA Y EQUIPO EN CUALQUIER NIVEL, VER DETALLE EN PLANOS, Y TODO LO NECESARIO PARA SU CORRECTA EJECUCION, CONCEPTO TERMINADO A SATISFACCION DE LA RESIDENCIA.\n\n","ML",16,0,null,{"$f":"ROUND(D123*E123,2)","v":0},0]
["02.-","FORJADO DE  ESCALÓN DE CONCRETO, HECHO EN OBRA, INCLUYE; CARGO DIRECTO POR EL COSTO DE LOS MATERIALES QUE INTERVENGAN, FLETE A OBRA, DESPERDICIO, ACARREO HASTA EL LUGAR DE SU UTILIZACIÓN, TRAZO NIVELES, HABILITADO DE ACERO, CORTE, ANCLAJE, ELABORACIÓN DE CONCRETO, COLADO, CIMBRADO Y DESCIMBRADO, VIBRADO, CURADO, LIMPIEZA Y RETIRO DE SOBRANTES FUERA DE OBRA, EQUIPO DE SEGURIDAD, INSTALACIONES ESPECÍFICAS, DEPRECIACIÓN Y DEMÁS DERIVADOS DEL USO DE HERRAMIENTA Y EQUIPO, EN CUALQUIER NIVEL. DE CONCRETO ARMADO DE HASTA 30 CM. DE HUELLA X 13 A 18 CM. DE PERALTE, CHAFLANES, F'C= 200 KG/CM2., AGREGADO MÁXIMO DE 19 MM., ARMADO CON 2 VARILLAS DEL No. 3 A.R. Y ESTRIBOS DEL No. 3 A.R. A CADA 20 CM. DE ACUERDO A PROYECTO, CIMBRA APARENTE ACABADO ESCOBILLADO. (EN AREA DE ACCESO)","ML",12,0,null,0,0]
["03.-","SUMINISTRO Y PLANTACIÓN DE ÁRBOLES Y ARBUSTOS, INCLUYE; CARGO DIRECTO POR EL COSTO DE LOS MATERIALES Y MANO DE OBRA QUE INTERVENGAN, FLETE A OBRA, DESPERDICIO, ACARREO HASTA EL LUGAR DE SU UTILIZACIÓN, GUÍAS, TRAZO Y LOCALIZACIÓN, EXCAVACIÓN Y PREPARACIÓN DE CEPA, CAPA PRIMARIA DE TIERRA, PLOMEO, RELLENO DE CEPA CON TIERRA PREPARADA, ESTACAS, RETENIDAS DE ALAMBRE, TUTORES, MANGUERAS DE PROTECCIÓN, CAJETES, FERTILIZANTES, RIEGO Y ACCESORIOS PARA EL MISMO, REPLANTACIÓN O RESIEMBRA QUE SE REQUIERA, CONTROL DE PLAGAS, ENVASE Y RETIRO DEL MISMO, MANTENIMIENTO POR 30 DÍAS POSTERIORES A LA FECHA DE RECEPCIÓN DE LOS TRABAJOS, LIMPIEZA Y RETIRO DE SOBRANTES FUERA DE OBRA, EQUIPO DE SEGURIDAD, INSTALACIONES ESPECÍFICAS, DEPRECIACIÓN Y DEMÁS DERIVADOS DEL USO DE HERRAMIENTA Y EQUIPO. 'OLIVO NEGRO,  ALTURA 2.00-3.00 M. TRONCO 35 CMS. DE DIAMETRO","PZA",4,0,null,0,0]
[null,"SUBTOTAL DE JARDINERIA Y OBRA EXTERIOR",null,null,null,null,{"$f":"SUM(G123:G125)","v":0},0]
["H.-","INSTALACIONES ELECTRICAS",null,null,null,null,null,0]
["I.-","TECHUMBRE METALICA",null,null,null,null,null,0]
["01.-","DEMOLICION Y RETIRO DE BASE DE MURETE Y BASE DE MEDICION, INCLUYE: TUBERIAS, CABLEADO, GABINETE, CONSIDERAR: CARGO DIRECTO POR EL COSTO DE MANO DE OBRA Y MATERIALES REQUERIDOS, ACARREO  COLOCACION, ANDAMIOS, GRUA,  LIMPIEZA Y RETIRO DE SOBRANTES FUERA DE OBRA, EQUIPO DE SEGURIDAD, INSTALACIONES ESPECIFICAS, DEPRECIACION Y DEMAS CARGOS DERIVADOS DEL USO DE EQUIPO Y HERRAMIENTA EN CUALQUIER NIVEL.","PZA",1,0,null,{"$f":"ROUND(D129*E129,2)","v":0},0]
["02.-","SUMINISTRO Y COLOCACIÓN DE LÁMPARA COLGANTE  DE 200 WATTS DE LED´S, MARCA MAGG, HIGH BAY, PREMIUM , CODIGO L5892-330,  LUZ FRIA, HECHO EN ALUMINIO, CON SUPRESOR DE PICOS, 220 VOLTS. ALTO FACTOR DE POTENCIA, IP 60, ABIERTA PARA COLOCARSE SUSPENDIDA DEL TECHO, INCLUYE: SOPORTE EN ESTRUCTURA DE TECHUNBRE (VER PLANO ELECTRICO), CAJA DE LAMINA GALVANIZADA DE 6\"X6\" TUBO LICUATITE 3/4\" Y CONECTORES CLAVIJA RECEPTACULO, CABLEADO INTERIOR CON 2 CABLES CALIBRE 10 AWG., LED, DRIVER, ESTRUCTURA DE MONTAJE A BASE DE TUBO DE ACERO,  ANEXAR COPIA DE CERTIFICACION. CONSIDERAR: CARGO DIRECTO POR EL COSTO DE MANO DE OBRA Y MATERIALES REQUERIDOS, FLETE A OBRA, ACARREO, COLOCACION,  LIMPIEZA Y RETIRO DE SOBRANTES FUERA DE OBRA, EQUIPO DE SEGURIDAD, INSTALACIONES ESPECIFICAS, DEPRECIACION Y DEMAS CARGOS DERIVADOS DEL USO DE EQUIPO Y HERRAMIENTA EN CUALQUIER NIVEL.","PZA",12,0,null,0,0]
["03.-","SUMINISTRO Y COLOCACIÓN DE LÁMPARA COLGANTE  DE 300 WATTS DE LED´S, MARCA MAGG, HIGH BAY 300, CODIGO L5875-330,  LUZ FRIA, HECHO EN ALUMINIO, CON SUPRESOR DE PICOS, 220 VOLTS. ALTO FACTOR DE POTENCIA, IP 60, ABIERTA PARA COLOCARSE SUSPENDIDA DEL TECHO, INCLUYE: SOPORTE EN ESTRUCTURA DE TECHUNBRE (VER PLANO ELECTRICO),CAJA DE LAMINA GALVANIZADA DE 6\"X6\",  TUBO LICUATITE 3/4\" Y CONECTORES CLAVIJA RECEPTACULO, CABLEADO INTERIOR CON 2 CABLES CALIBRE 10 AWG., LED, DRIVER, ESTRUCTURA DE MONTAJE A BASE DE TUBO DE ACERO,  ANEXAR COPIA DE CERTIFICACION. CONSIDERAR: CARGO DIRECTO POR EL COSTO DE MANO DE OBRA Y MATERIALES REQUERIDOS, FLETE A OBRA, ACARREO, COLOCACION,  LIMPIEZA Y RETIRO DE SOBRANTES FUERA DE OBRA, EQUIPO DE SEGURIDAD, INSTALACIONES ESPECIFICAS, DEPRECIACION Y DEMAS CARGOS DERIVADOS DEL USO DE EQUIPO Y HERRAMIENTA EN CUALQUIER NIVEL.","PZA",5,0,null,0,0]
["04.-","SUMINISTRO Y COLOCACIÓN DE CANALIZACIÓN ELÉCTRICA PARA LÁMPARA, A BASE DE TUBO CONDUIT GALVANIZADO PARED GRUESA DE 27 mm (1\") DE DIÁMETRO, SOPORTADA A CADA 150 Cms CON ABRAZADERA OMEGA EN ESTRUCTURA METÁLICA DE TECHUMBRE O AHOGADA EN MURO, INCLUYE: CABLEADO CON DOS CABLES CALIBRE 6 AWG THHW-LS 90°C PARA FASES Y UN CABLE 10 AWG DESNUDO PARA TIERRA FÍSICA, MATERIAL DIVERSO DE FIJACIÓN, CONEXIÓN DEL CIRCUITO, PASOS Y RESANES NECESARIOS, CARGO DIRECTO POR EL COSTO DE MANO DE OBRA Y MATERIALES REQUERIDOS, FLETE A OBRA, ACARREO, COPLE, TRAZO, CORTE, COLOCACIÓN, GUÍA DE ALAMBRE GALVANIZADO CALIBRE 14, FIJACIÓN, LIMPIEZA Y RETIRO DE SOBRANTES FUERA DE OBRA, EQUIPO DE SEGURIDAD, INSTALACIONES ESPECIFICAS, DEPRECIACIÓN Y DEMÁS CARGOS DERIVADOS DEL USO DE HERRAMIENTA Y EQUIPO EN CUALQUIER NIVEL.","ML",98,0,null,0,0]
["05.-","SUMINISTRO Y COLOCACIÓN DE CANALIZACIÓN ELÉCTRICA PARA LÁMPARA, A BASE DE TUBO CONDUIT GALVANIZADO PARED GRUESA DE 21 mm (3/4\") DE DIÁMETRO, SOPORTADA A CADA 150 Cms CON ABRAZADERA OMEGA EN ESTRUCTURA METÁLICA DE TECHUMBRE O AHOGADA EN MURO, INCLUYE: CABLEADO CON DOS CABLES CALIBRE 8 AWG THHW-LS 90°C PARA FASES Y UN CABLE 10 AWG DESNUDO PARA TIERRA FÍSICA, MATERIAL DIVERSO DE FIJACIÓN, CONEXIÓN DEL CIRCUITO, PASOS Y RESANES NECESARIOS, CARGO DIRECTO POR EL COSTO DE MANO DE OBRA Y MATERIALES REQUERIDOS, FLETE A OBRA, ACARREO, COPLE, TRAZO, CORTE, COLOCACIÓN, GUÍA DE ALAMBRE GALVANIZADO CALIBRE 14, FIJACIÓN, LIMPIEZA Y RETIRO DE SOBRANTES FUERA DE OBRA, EQUIPO DE SEGURIDAD, INSTALACIONES ESPECIFICAS, DEPRECIACIÓN Y DEMÁS CARGOS DERIVADOS DEL USO DE HERRAMIENTA Y EQUIPO EN CUALQUIER NIVEL.","M",43,0,null,0,0]
["06.-","SUMINISTRO Y COLOCACIÓN DE CANALIZACIÓN ELÉCTRICA PARA LÁMPARA, A BASE DE TUBO CONDUIT PVC CEDULA 40 DE 27 mm (1\") DE DIÁMETRO, INCLUYE: CABLEADO CON DOS CABLES CALIBRE 6 AWG THHW-LS 90°C PARA FASES Y UN CABLE 10 AWG DESNUDO PARA TIERRA FÍSICA, MATERIAL DIVERSO DE FIJACIÓN, CONEXIÓN DEL CIRCUITO, PASOS Y RESANES NECESARIOS, CARGO DIRECTO POR EL COSTO DE MANO DE OBRA Y MATERIALES REQUERIDOS, FLETE A OBRA, ACARREO, COPLE, TRAZO, CORTE, COLOCACIÓN, GUÍA DE ALAMBRE GALVANIZADO CALIBRE 14, FIJACIÓN, LIMPIEZA Y RETIRO DE SOBRANTES FUERA DE OBRA, EQUIPO DE SEGURIDAD, INSTALACIONES ESPECIFICAS, DEPRECIACIÓN Y DEMÁS CARGOS DERIVADOS DEL USO DE HERRAMIENTA Y EQUIPO EN CUALQUIER NIVEL.","ML",23,0,null,0,0]
["07.-","SUMINISTRO Y COLOCACIÓN DE CANALIZACIÓN ELÉCTRICA PARA LÁMPARA, A BASE DE TUBO CONDUIT PVC CEDULA 40 DE 21 mm (3/4\") DE DIÁMETRO, INCLUYE: CABLEADO CON DOS CABLES CALIBRE 8 AWG THHW-LS 90°C PARA FASES Y UN CABLE 10 AWG DESNUDO PARA TIERRA FÍSICA, MATERIAL DIVERSO DE FIJACIÓN, CONEXIÓN DEL CIRCUITO, PASOS Y RESANES NECESARIOS, CARGO DIRECTO POR EL COSTO DE MANO DE OBRA Y MATERIALES REQUERIDOS, FLETE A OBRA, ACARREO, COPLE, TRAZO, CORTE, COLOCACIÓN, GUÍA DE ALAMBRE GALVANIZADO CALIBRE 14, FIJACIÓN, LIMPIEZA Y RETIRO DE SOBRANTES FUERA DE OBRA, EQUIPO DE SEGURIDAD, INSTALACIONES ESPECIFICAS, DEPRECIACIÓN Y DEMÁS CARGOS DERIVADOS DEL USO DE HERRAMIENTA Y EQUIPO EN CUALQUIER NIVEL.","M",63,0,null,0,0]
["08.-","EXCAVACIÓN DE ZANJA DE 50 Cm DE PROFUNDIDAD Y ANCHO VARIABLE DE 20 A 40 Cm EN TERRENO INVESTIGADO EN SITIO,  CAMA DE ARENA DE 10 Cm, TENDIDO DE TUBOS SEGÚN SE INDICA EN PLANOS, RELLENO DE LA ZANJA CON MATERIAL PRODUCTO DE EXCAVACIÓN COMPACTADO AL 90% MÍNIMO, INCLUYE CARGO DIRECTO POR EL COSTO DE MANO DE OBRA Y MATERIALES Y EQUIPOS REQUERIDOS, ACARREOS, TRAZO, LIMPIEZA Y RETIRO DE SOBRANTES FUERA DE OBRA, EQUIPO DE SEGURIDAD, INSTALACIONES ESPECÍFICAS, DEPRECIACIÓN Y DEMÁS CARGOS DERIVADOS DEL USO DE EQUIPO Y HERRAMIENTA, EN CUALQUIER NIVEL..","ML",45,0,null,0,0]
["09.-","SUMINISTRO, COLOCACIÓN Y CONEXIÓN DE LÁMPARA LED TIPO WALLPACK, MODELO SERIE WALLPACK, DE 80W., 220 VOLTS., MARCA MAGG, PARA SOBREPONER, IP65, L7265-630,  TERMINADO COLOR BLANCO, LUZ FRIA,  SE INCLUYE: LED, DRIVER LED, TORNILLOS, TUERCAS, ARANDELAS Y DEMÁS ELEMENTOS DE FIJACIÓN Y CONEXIÓN, CARGO DIRECTO POR EL COSTO DE MANO DE OBRA Y MATERIALES REQUERIDOS, FLETE A OBRA, ACARREO, COLOCACIÓN, FIJACIÓN, LIMPIEZA Y RETIRO DE SOBRANTES FUERA DE OBRA, EQUIPO DE SEGURIDAD, INSTALACIONES ESPECIFICAS, DEPRECIACIÓN Y DEMÁS CARGOS DERIVADOS DEL USO DE HERRAMIENTA Y EQUIPO EN CUALQUIER NIVEL, ANEXAR COPIA DE CERTIFICADO DEL PRODUCTO.","PZA.",6,0,null,0,0]
["10.-","SUMINISTRO, COLOCACIÓN Y CONEXIÓN DE LÁMPARA LED TIPO SPOT PISO, MODELO ATLANTIC II, DE 16W., 220 VOLTS., MARCA ASTRO LED, TERMINADO EN ALUMINIO, LUZ CALIDA, LENTE DIRIGIBLE 15°,   07-7101, IP 67, SE INCLUYE: LED, DRIVER LED, HOUSING, TORNILLOS, TUERCAS, ARANDELAS Y DEMÁS ELEMENTOS DE FIJACIÓN Y CONEXIÓN, CARGO DIRECTO POR EL COSTO DE MANO DE OBRA Y MATERIALES REQUERIDOS, FLETE A OBRA, ACARREO, COLOCACIÓN, FIJACIÓN, LIMPIEZA Y RETIRO DE SOBRANTES FUERA DE OBRA, EQUIPO DE SEGURIDAD, INSTALACIONES ESPECIFICAS, DEPRECIACIÓN Y DEMÁS CARGOS DERIVADOS DEL USO DE HERRAMIENTA Y EQUIPO EN CUALQUIER NIVEL, ANEXAR COPIA DE CERTIFICADO DEL PRODUCTO.","PZA.",8,0,null,0,0]
["11.-","SUMINISTRO, COLOCACIÓN Y CONEXIÓN DE LÁMPARA LED TIPO CORTECIA, MODELO SMART, DE 2.6W., 220 VOLTS., MARCA MAGG, PARA EMPOTRAR TERMINADO COLOR GRAFITO, LUZ CALIDA,  IP 44, 08-9244, SE INCLUYE: LED, DRIVER LED, HOUSING, TORNILLOS, TUERCAS, ARANDELAS Y DEMÁS ELEMENTOS DE FIJACIÓN Y CONEXIÓN, CARGO DIRECTO POR EL COSTO DE MANO DE OBRA Y MATERIALES REQUERIDOS, FLETE A OBRA, ACARREO, COLOCACIÓN, FIJACIÓN, LIMPIEZA Y RETIRO DE SOBRANTES FUERA DE OBRA, EQUIPO DE SEGURIDAD, INSTALACIONES ESPECIFICAS, DEPRECIACIÓN Y DEMÁS CARGOS DERIVADOS DEL USO DE HERRAMIENTA Y EQUIPO EN CUALQUIER NIVEL, ANEXAR COPIA DE CERTIFICADO DEL PRODUCTO.","PZA.",15,0,null,0,0]
["12.-","SUMINISTRO, COLOCACIÓN Y CONEXIÓN DE LÁMPARA LED TIPO SPOT, MODELO ATLANTIC, DE 6.5W., 220 VOLTS., MARCA ASTRO LED, TERMINADO EN ALUMINIO, LUZ CALIDA, 07-6201, IP 67, SE INCLUYE: LED, DRIVER LED, HOUSING, TORNILLOS, TUERCAS, ARANDELAS Y DEMÁS ELEMENTOS DE FIJACIÓN Y CONEXIÓN, CARGO DIRECTO POR EL COSTO DE MANO DE OBRA Y MATERIALES REQUERIDOS, FLETE A OBRA, ACARREO, COLOCACIÓN, FIJACIÓN, LIMPIEZA Y RETIRO DE SOBRANTES FUERA DE OBRA, EQUIPO DE SEGURIDAD, INSTALACIONES ESPECIFICAS, DEPRECIACIÓN Y DEMÁS CARGOS DERIVADOS DEL USO DE HERRAMIENTA Y EQUIPO EN CUALQUIER NIVEL, ANEXAR COPIA DE CERTIFICADO DEL PRODUCTO.","PZA.",4,0,null,0,0]
["13.-","SUMINISTRO Y COLOCACIÓN DE SALIDA ELÉCTRICA PARA LÁMPARA, EN CAJA DE LAMINA GALVANIZADA OCTAGONAL CON TAPA CIEGA, TUBO CONDUIT PVC CEDULA 40 DE 16 MM. (1/2\") DE DIÁMETRO, AHOGADO EN LOSA O MURO, INCLUYE: CABLEADO CON CALIBRE 12 AWG THW-LS 90° PARA FASES Y NEUTRO Y 14 AWG DESNUDO PARA TIERRA FÍSICA, MATERIAL DIVERSO DE FIJACIÓN, APAGADOR, CONEXIÓN DEL CIRCUITO, RANURAS, PASOS Y RESANES NECESARIOS EN MURO, CARGO DIRECTO POR EL COSTO DE MANO DE OBRA Y MATERIALES REQUERIDOS, FLETE A OBRA, ACARREO, COPLE, TRAZO, CORTE, COLOCACIÓN, GUÍA DE ALAMBRE GALVANIZADO CALIBRE 14, FIJACIÓN, LIMPIEZA Y RETIRO DE SOBRANTES FUERA DE OBRA, EQUIPO DE SEGURIDAD, INSTALACIONES ESPECIFICAS, DEPRECIACIÓN Y DEMÁS CARGOS DERIVADOS DEL USO DE HERRAMIENTA Y EQUIPO EN CUALQUIER NIVEL.","SAL.",27,0,null,0,0]
["14.-","SUMINISTRO Y COLOCACIÓN DE SALIDA ELÉCTRICA PARA LÁMPARA, EN CAJA DE LAMINA GALVANIZADA OCTAGONAL CON TAPA CIEGA, TUBO CONDUIT GALVANIZADO PARED GRUESA DE 16 MM. (1/2\") DE DIÁMETRO, AHOGADO EN LOSA O MURO, INCLUYE: CABLEADO CON CALIBRE 12 AWG THW-LS 90° PARA FASES Y NEUTRO Y 14 AWG DESNUDO PARA TIERRA FÍSICA, MATERIAL DIVERSO DE FIJACIÓN, APAGADOR, CONEXIÓN DEL CIRCUITO, RANURAS, PASOS Y RESANES NECESARIOS EN MURO, CARGO DIRECTO POR EL COSTO DE MANO DE OBRA Y MATERIALES REQUERIDOS, FLETE A OBRA, ACARREO, COPLE, TRAZO, CORTE, COLOCACIÓN, GUÍA DE ALAMBRE GALVANIZADO CALIBRE 14, FIJACIÓN, LIMPIEZA Y RETIRO DE SOBRANTES FUERA DE OBRA, EQUIPO DE SEGURIDAD, INSTALACIONES ESPECIFICAS, DEPRECIACIÓN Y DEMÁS CARGOS DERIVADOS DEL USO DE HERRAMIENTA Y EQUIPO EN CUALQUIER NIVEL.","SAL.",6,0,null,0,0]
["15.-","SUMINISTRO Y COLOCACIÓN DE SALIDA PARA CONTACTO POLARIZADO 127 V.  CON TAPA PARA INTEMPERIE, EN CAJA 4x2\", CANALIZACIÓN A BASE DE TUBERÍA CONDUIT PVC PARED GRUESA DE 21 mm (3/4\"), CABLEADO CON CALIBRE 10 AWG THW-LS 90°C PARA FASE Y NEUTRO, 14 AWG CUALQUIER AISLAMIENTO PARA SISTEMA DE TIERRAS, INCLUYE: CONEXIÓN, RANURA Y RESANE EN MURO O PISO, CARGO DIRECTO POR EL COSTO DE MANO DE OBRA Y MATERIALES REQUERIDOS, FLETE A OBRA, ACARREO, COPLE, TRAZO, CORTE, GUÍA DE ALAMBRE GALVANIZADO CALIBRE 14, FIJACIÓN, LIMPIEZA Y RETIRO DE SOBRANTES FUERA DE OBRA, EQUIPO DE SEGURIDAD, INSTALACIONES ESPECÍFICAS, DEPRECIACIÓN Y DEMÁS CARGOS DERIVADOS DEL USO DE EQUIPO Y HERRAMIENTA, EN CUALQUIER NIVEL.","SAL.",4,0,null,0,0]
["16.-","SUMINISTRO Y COLOCACIÓN DE SALIDA PARA CONTACTO POLARIZADO 220 V. PARA ALIMENTACION DE BOMBA,  CON TAPA, EN CAJA 4x2\", CANALIZACIÓN A BASE DE TUBERÍA CONDUIT PVC PARED GRUESA DE 21 mm (3/4\"), CABLEADO CON CALIBRE 10 AWG THW-LS 90°C PARA FASE Y NEUTRO, 14 AWG CUALQUIER AISLAMIENTO PARA SISTEMA DE TIERRAS, INCLUYE: CONEXIÓN, RANURA Y RESANE EN MURO O PISO, CARGO DIRECTO POR EL COSTO DE MANO DE OBRA Y MATERIALES REQUERIDOS, FLETE A OBRA, ACARREO, COPLE, TRAZO, CORTE, GUÍA DE ALAMBRE GALVANIZADO CALIBRE 14, FIJACIÓN, LIMPIEZA Y RETIRO DE SOBRANTES FUERA DE OBRA, EQUIPO DE SEGURIDAD, INSTALACIONES ESPECÍFICAS, DEPRECIACIÓN Y DEMÁS CARGOS DERIVADOS DEL USO DE EQUIPO Y HERRAMIENTA, EN CUALQUIER NIVEL.","SAL.",1,0,null,0,0]
["17.-","SUMINISTRO E INSTALACION DE DESCONECTADOR DE EMERGENCIA, MARCA SQUARE D,TIPO SOBREPONER, MONOFASICO  220 VOLTS,  CAPACIDAD DE 15 A 60 AMPERES, .240/120 Vac., NEMA 3R, ZAPATAS PRINCIPALES. INCLUYE: CARGO DIRECTO POR EL COSTO DE MANO DE OBRA Y MATERIALES REQUERIDOS, RANURADO Y RESANES NECESARIOS, FLETE A OBRA, ACARREO, TRAZO, FIJACIÓN, CONEXIÓN MECÁNICA, CONEXIÓN ELÉCTRICA, PRUEBA, LIMPIEZA Y RETIRO DE SOBRANTES FUERA DE OBRA, EQUIPO DE SEGURIDAD, INSTALACIONES ESPECÍFICAS, DEPRECIACIÓN Y DEMÁS DERIVADOS DEL USO DE EQUIPO Y HERRAMIENTA, EN CUALQUIER NIVEL.","PZA.",1,0,null,0,0]
["18.-","SUMINISTRO Y COLOCACIÓN DE CANALIZACIÓN ELÉCTRICA A BASE DE TUBERÍA CONDUIT PVC PARED GRUESA, INCLUYE CARGO DIRECTO POR EL COSTO DE MANO DE OBRA Y MATERIALES REQUERIDOS, FLETE A OBRA, ACARREO, COPLE, TRAZO, CORTE, COLOCACIÓN, GUÍA DE ALAMBRE GALVANIZADO CALIBRE 14, FIJACIÓN, LIMPIEZA Y RETIRO DE SOBRANTES FUERA DE OBRA, EQUIPO DE SEGURIDAD, INSTALACIONES ESPECÍFICAS, DEPRECIACIÓN Y DEMÁS CARGOS DERIVADOS DEL USO DE EQUIPO Y HERRAMIENTA, EN CUALQUIER NIVEL.",null,null,null,null,0,0]
[null,"DE Ø 35 mm. Ø (1-1/4\")","ML",15,0,null,0,0]
["19.-","SUMINISTRO Y COLOCACION DE CABLE DE COBRE THW-LS EN CANALIZACION ELECTRICA, INCLUYE: CARGO DIRECTO POR EL COSTO DE MANO DE OBRA Y MATERIALES REQUERIDOS, FLETE A OBRA, ACARREO, CORTES, COLOCACION, CINTA AISLANTE SUPER 33, ZAPATA PONCHABLE Y/O CONECTOR BIPARTIDO EN EXTREMO DE LÍNEA, FIJACION, LIMPIEZA Y RETIRO DE SOBRANTES FUERA DE OBRA, EQUIPO DE SEGURIDAD, INSTALACIONES ESPECIFICAS, DEPRECIACIÓN Y DEMAS CARGOS DERIVADOS DEL USO DE EQUIPO Y HERRAMIENTA EN CUALQUIER NIVEL.",null,null,null,null,0,0]
[null,"DEL 10 AWG","ML",6,0,null,0,{"$f":"ROUND(D149*E149,2)","v":0}]
[null,"DEL 8 AWG","ML",15,0,null,0,0]
[null,"DEL 6 AWG","ML",12,0,null,0,0]
[null,"DEL 4 AWG","ML",15,0,null,0,0]
["20.-","SUMINISTRO Y COLOCACION DE REGISTRO ELECTRICO DE 40x40x60 CMS., PREFABRICADO A BASE CEMENTO F´c=150 Kg/Cm2, APLANADO INTERIOR PULIDO FINO CEMENTO ARENA 1:3, PISO DE GRAVA, MARCO Y CONTRAMARCO DE FIERRO, AGULO 1-1/2¨X1/4¨ Y TAPA DE CONCRETO F´C=150 Kg/Cm2, POR UNIDAD DE OBRA TERMINADA.","PZA",1,0,null,0,0]
["21.-","SUMINISTRO Y COLOCACION DE REGISTRO ELECTRICO DE 60x40x60 CMS., PREFABRICADO A BASE CEMENTO F´c=150 Kg/Cm2, APLANADO INTERIOR PULIDO FINO CEMENTO ARENA 1:3, PISO DE GRAVA, MARCO Y CONTRAMARCO DE FIERRO, AGULO 1-1/2¨X1/4¨ Y TAPA DE CONCRETO F´C=150 Kg/Cm2, POR UNIDAD DE OBRA TERMINADA.","PZA",2,0,null,0,0]
["22.-","SUMINISTRO Y COLOCACIÓN DE CONTACTOR DE ALUMBRADO MONOFÁSICO, 220 VOLTS., 70 AMPERES, BOBINA DE CONTROL 127 VOLTS., INCLUYE: GABINETE MULTIPROPÓSITO PARA SOBREPONER NEMA 3, CON BOTONERA PARA ENCENDIDO, CABLEADO DE CONTROL Y CONEXIÓN A CIRCUITO DE ALUMBRADO, INCLUYE CARGO DIRECTO POR EL COSTO DE MANO DE OBRA Y MATERIALES REQUERIDOS, FLETE A OBRA, ACARREO, COPLE, TRAZO, CORTE, COLOCACIÓN, GUÍA DE ALAMBRE GALVANIZADO CALIBRE 14, FIJACIÓN, LIMPIEZA Y RETIRO DE SOBRANTES FUERA DE OBRA, EQUIPO DE SEGURIDAD, INSTALACIONES ESPECÍFICAS, DEPRECIACIÓN Y DEMÁS CARGOS DERIVADOS DEL USO DE EQUIPO Y HERRAMIENTA, EN CUALQUIER NIVEL..","PZA",2,0,null,0,0]
["23.-","SUMINISTRO Y COLOCACIÓN DE CONTACTOR DE ALUMBRADO MONOFÁSICO, 220 VOLTS., 70 AMPERES, BOBINA DE CONTROL 127 VOLTS., INCLUYE: GABINETE MULTIPROPÓSITO PARA SOBREPONER NEMA 3, FOTOCELDA CON CABLEADO DE CONTROL Y CONEXIÓN A CIRCUITO DE ALUMBRADO, INCLUYE CARGO DIRECTO POR EL COSTO DE MANO DE OBRA Y MATERIALES REQUERIDOS, FLETE A OBRA, ACARREO, COPLE, TRAZO, CORTE, COLOCACIÓN, GUÍA DE ALAMBRE GALVANIZADO CALIBRE 14, FIJACIÓN, LIMPIEZA Y RETIRO DE SOBRANTES FUERA DE OBRA, EQUIPO DE SEGURIDAD, INSTALACIONES ESPECÍFICAS, DEPRECIACIÓN Y DEMÁS CARGOS DERIVADOS DEL USO DE EQUIPO Y HERRAMIENTA, EN CUALQUIER NIVEL..","PZA",1,0,null,0,0]
["24.-","CENTRO DE CARGA MARCA SQUARE D, PARA INTEMPERIE, GABINETE NEMA  3R,  METÁLICO TIPO  SOBREPONER, MONOFASICO A TRES HILOS 24 ESPACIOS, BARRAS DE 100 AMPERES, .240/120 Vac., ZAPATAS PRINCIPALES. INCLUYE: CARGO DIRECTO POR EL COSTO DE MANO DE OBRA Y MATERIALES REQUERIDOS, FLETE A OBRA, ACARREO, TRAZO, FIJACIÓN, CONEXIÓN MECÁNICA, CONEXIÓN ELÉCTRICA, PRUEBA, LIMPIEZA Y RETIRO DE SOBRANTES FUERA DE OBRA, EQUIPO DE SEGURIDAD, INSTALACIONES ESPECÍFICAS, DEPRECIACIÓN Y DEMÁS DERIVADOS DEL USO DE EQUIPO Y HERRAMIENTA, EN CUALQUIER NIVEL.","PZA.",1,0,null,0,0]
["25.-","SUMINISTRO Y COLOCACIÓN DE INTERRUPTOR TERMO MAGNÉTICO QO DE DOS POLOS DE 15 A 50 AMPERES, MARCA SQUARE D.","PZA",5,0,null,0,0]
["26.-","SUMINISTRO DE MATERIALES Y CONSTRUCCIÓN DE MURETE TIPO \"H\", DE 1.5 METROS INTERIOR POR 2 METROS DE ALTO Y 40 CM. DE PROFUNDIDAD, A BASE DE BLOQUE DE CEMENTO DE 15X20X40 CM. ASENTADO CON MORTERO CEMENTO - ARENA 1:3, APLANADO PULIDO FINO, PISO DE GRAVA, PINTADO A DOS MANOS EN COLOR INDICADO POR SUPERVISIÓN, PUERTAS METÁLICAS DE LÁMINA ESTRIADA POR AMBOS LADOS, MARCO Y CONTRAMARCO, PASADORES, BISAGRAS, CERROJO EN PISO, CANDADO, ACABADO ESMALTE ANTICORROSIVO A DOS MANOS EN COLOR INDICADO POR SUPERVISOR, POR UNIDAD DE OBRA TERMINADA.","PZA",1,0,null,0,0]
["27.-","SUMINISTRO E INSTALACION DE BASE DE MEDICIÓN NORMA CFE MS-3, MONOFASICA 220/127 VOLTS  COMPLETA CABLEADA CON  CABLES CALIBRE 4 AWG PARA FASES Y 4 AWG NEUTRO, INTERRUPTOR TERMOMAGNÉTICO 2x60 AMPERES, MUFA Y TUBO DE 1-1/4\", BAJANTE DE TIERRA CON VARILLA COPPERWELD Y CABLE 8 AWG, CONECTORES MULTIPLES PARA ACOMETIDA Y AISLADOR, LIBRANZAS POR PARTE DE CFE PARA REHUBICACION, Y DEMAS CARGOS POR CORTE NECESARIO DE SELLOS EN SERVICIO.","PZA.",1,0,null,0,0]
[null,"SUBTOTAL DE TECHUMBRE METALICA",null,null,null,null,{"$f":"SUM(G129:G160)","v":0},0]
["II.-","BAÑOS Y TEMPLETE",null,null,null,null,null,0]
["01.-","SUMINISTRO, COLOCACIÓN Y CONEXIÓN DE LÁMPARA LED TIPO ARBOTANTE, MODELO LUNA LED, DE 9W., 127 VOLTS., MARCA MAGG, PARA SOBREPONER TERMINADO COLOR BLANCO, LUZ FRIA,  SE INCLUYE: LED, DRIVER LED, TORNILLOS, TUERCAS, ARANDELAS Y DEMÁS ELEMENTOS DE FIJACIÓN Y CONEXIÓN, CARGO DIRECTO POR EL COSTO DE MANO DE OBRA Y MATERIALES REQUERIDOS, FLETE A OBRA, ACARREO, COLOCACIÓN, FIJACIÓN, LIMPIEZA Y RETIRO DE SOBRANTES FUERA DE OBRA, EQUIPO DE SEGURIDAD, INSTALACIONES ESPECIFICAS, DEPRECIACIÓN Y DEMÁS CARGOS DERIVADOS DEL USO DE HERRAMIENTA Y EQUIPO EN CUALQUIER NIVEL, ANEXAR COPIA DE CERTIFICADO DEL PRODUCTO.","PZA.",12,0,null,{"$f":"ROUND(D163*E163,2)","v":0},0]
["02.-","SUMINISTRO, COLOCACIÓN Y CONEXIÓN DE LÁMPARA LED TIPO REFLECTOR, MODELO KR 80, DE 80W., 127 VOLTS., MARCA MAGG, PARA SOBREPONER, IP65, L7453-630,  TERMINADO COLOR BLANCO, LUZ FRIA,  SE INCLUYE: LED, DRIVER LED, TORNILLOS, TUERCAS, ARANDELAS Y DEMÁS ELEMENTOS DE FIJACIÓN Y CONEXIÓN, CARGO DIRECTO POR EL COSTO DE MANO DE OBRA Y MATERIALES REQUERIDOS, FLETE A OBRA, ACARREO, COLOCACIÓN, FIJACIÓN, LIMPIEZA Y RETIRO DE SOBRANTES FUERA DE OBRA, EQUIPO DE SEGURIDAD, INSTALACIONES ESPECIFICAS, DEPRECIACIÓN Y DEMÁS CARGOS DERIVADOS DEL USO DE HERRAMIENTA Y EQUIPO EN CUALQUIER NIVEL, ANEXAR COPIA DE CERTIFICADO DEL PRODUCTO.","PZA.",2,0,null,0,0]
["03.-","SUMINISTRO, COLOCACIÓN Y CONEXIÓN DE LÁMPARA LED TIPO ARBOTANTE, DE DOBLE HAZ DE LUZ  DE 12W., 127 VOLTS., MARCA MAGG, SERIE WII,  PARA SOBREPONER TERMINADO COLOR BLANCO, LUZ CALIDA,  IP 65, L7126-1E0, SE INCLUYE: LED, DRIVER LED,  TORNILLOS, TUERCAS, ARANDELAS Y DEMÁS ELEMENTOS DE FIJACIÓN Y CONEXIÓN, CARGO DIRECTO POR EL COSTO DE MANO DE OBRA Y MATERIALES REQUERIDOS, FLETE A OBRA, ACARREO, COLOCACIÓN, FIJACIÓN, LIMPIEZA Y RETIRO DE SOBRANTES FUERA DE OBRA, EQUIPO DE SEGURIDAD, INSTALACIONES ESPECIFICAS, DEPRECIACIÓN Y DEMÁS CARGOS DERIVADOS DEL USO DE HERRAMIENTA Y EQUIPO EN CUALQUIER NIVEL, ANEXAR COPIA DE CERTIFICADO DEL PRODUCTO.","PZA.",4,0,null,0,0]
["04.-","SUMINISTRO, COLOCACIÓN Y CONEXIÓN DE LÁMPARA LED TIPO SPOT, MODELO ATLANTIC, DE 6.5W., 220 VOLTS., MARCA ASTRO LED, TERMINADO EN ALUMINIO, LUZ CALIDA, 07-6201, IP 67, SE INCLUYE: LED, DRIVER LED, HOUSING, TORNILLOS, TUERCAS, ARANDELAS Y DEMÁS ELEMENTOS DE FIJACIÓN Y CONEXIÓN, CARGO DIRECTO POR EL COSTO DE MANO DE OBRA Y MATERIALES REQUERIDOS, FLETE A OBRA, ACARREO, COLOCACIÓN, FIJACIÓN, LIMPIEZA Y RETIRO DE SOBRANTES FUERA DE OBRA, EQUIPO DE SEGURIDAD, INSTALACIONES ESPECIFICAS, DEPRECIACIÓN Y DEMÁS CARGOS DERIVADOS DEL USO DE HERRAMIENTA Y EQUIPO EN CUALQUIER NIVEL, ANEXAR COPIA DE CERTIFICADO DEL PRODUCTO.","PZA.",12,0,null,0,0]
["05.-","SUMINISTRO, COLOCACIÓN Y CONEXIÓN DE LÁMPARA LED TIPO ARBOTANTE, DE 9W., 127 VOLTS., MARCA ASTRO LED, SERIE DIAMANTE,  PARA SOBREPONER TERMINADO COLOR ALUMINIO, LUZ CALIDA,  IP 65, 05-2509, SE INCLUYE: LED, DRIVER LED,  TORNILLOS, TUERCAS, ARANDELAS Y DEMÁS ELEMENTOS DE FIJACIÓN Y CONEXIÓN, CARGO DIRECTO POR EL COSTO DE MANO DE OBRA Y MATERIALES REQUERIDOS, FLETE A OBRA, ACARREO, COLOCACIÓN, FIJACIÓN, LIMPIEZA Y RETIRO DE SOBRANTES FUERA DE OBRA, EQUIPO DE SEGURIDAD, INSTALACIONES ESPECIFICAS, DEPRECIACIÓN Y DEMÁS CARGOS DERIVADOS DEL USO DE HERRAMIENTA Y EQUIPO EN CUALQUIER NIVEL, ANEXAR COPIA DE CERTIFICADO DEL PRODUCTO.","PZA.",4,0,null,0,0]
["06.-","SUMINISTRO Y COLOCACIÓN DE SALIDA ELÉCTRICA PARA LÁMPARA, EN CAJA DE LAMINA GALVANIZADA OCTAGONAL CON TAPA CIEGA, TUBO CONDUIT PVC CEDULA 40 DE 16 MM. (1/2\") DE DIÁMETRO, AHOGADO EN LOSA O MURO, INCLUYE: CABLEADO CON CALIBRE 12 AWG THW-LS 90° PARA FASES Y NEUTRO Y 14 AWG DESNUDO PARA TIERRA FÍSICA, MATERIAL DIVERSO DE FIJACIÓN, APAGADOR, CONEXIÓN DEL CIRCUITO, RANURAS, PASOS Y RESANES NECESARIOS EN MURO, CARGO DIRECTO POR EL COSTO DE MANO DE OBRA Y MATERIALES REQUERIDOS, FLETE A OBRA, ACARREO, COPLE, TRAZO, CORTE, COLOCACIÓN, GUÍA DE ALAMBRE GALVANIZADO CALIBRE 14, FIJACIÓN, LIMPIEZA Y RETIRO DE SOBRANTES FUERA DE OBRA, EQUIPO DE SEGURIDAD, INSTALACIONES ESPECIFICAS, DEPRECIACIÓN Y DEMÁS CARGOS DERIVADOS DEL USO DE HERRAMIENTA Y EQUIPO EN CUALQUIER NIVEL.","SAL.",31,0,null,0,0]
["07.-","SUMINISTRO Y COLOCACIÓN DE SALIDA PARA CONTACTO POLARIZADO 127 V.  CON TAPA PARA INTEMPERIE, EN CAJA 4x2\", CANALIZACIÓN A BASE DE TUBERÍA CONDUIT PVC PARED GRUESA DE 21 mm (3/4\"), CABLEADO CON CALIBRE 10 AWG THW-LS 90°C PARA FASE Y NEUTRO, 14 AWG CUALQUIER AISLAMIENTO PARA SISTEMA DE TIERRAS, INCLUYE: CONEXIÓN, RANURA Y RESANE EN MURO O PISO, CARGO DIRECTO POR EL COSTO DE MANO DE OBRA Y MATERIALES REQUERIDOS, FLETE A OBRA, ACARREO, COPLE, TRAZO, CORTE, GUÍA DE ALAMBRE GALVANIZADO CALIBRE 14, FIJACIÓN, LIMPIEZA Y RETIRO DE SOBRANTES FUERA DE OBRA, EQUIPO DE SEGURIDAD, INSTALACIONES ESPECÍFICAS, DEPRECIACIÓN Y DEMÁS CARGOS DERIVADOS DEL USO DE EQUIPO Y HERRAMIENTA, EN CUALQUIER NIVEL.","SAL.",3,0,null,0,0]
["08.-","SUMINISTRO Y COLOCACIÓN DE SALIDA PARA CONTACTO POLARIZADO 220 V.  CON TAPA, EN CAJA 4x2\", CANALIZACIÓN A BASE DE TUBERÍA CONDUIT PVC PARED GRUESA DE 21 mm (3/4\"), CABLEADO CON CALIBRE 8 AWG THW-LS 90°C PARA FASES, 10 AWG  PARA SISTEMA DE TIERRAS, INCLUYE: CONEXIÓN, RANURA Y RESANE EN MURO O PISO, CARGO DIRECTO POR EL COSTO DE MANO DE OBRA Y MATERIALES REQUERIDOS, FLETE A OBRA, ACARREO, COPLE, TRAZO, CORTE, GUÍA DE ALAMBRE GALVANIZADO CALIBRE 14, FIJACIÓN, LIMPIEZA Y RETIRO DE SOBRANTES FUERA DE OBRA, EQUIPO DE SEGURIDAD, INSTALACIONES ESPECÍFICAS, DEPRECIACIÓN Y DEMÁS CARGOS DERIVADOS DEL USO DE EQUIPO Y HERRAMIENTA, EN CUALQUIER NIVEL.","SAL.",1,0,null,0,0]
["09.-","CENTRO DE CARGA MARCA SQUARE D,  METÁLICO TIPO  EMPOTRAR, MONOFASICO A TRES HILOS 12 ESPACIOS, BARRAS DE 100 AMPERES, .240/120 Vac., ZAPATAS PRINCIPALES. INCLUYE: CARGO DIRECTO POR EL COSTO DE MANO DE OBRA Y MATERIALES REQUERIDOS, FLETE A OBRA, ACARREO, TRAZO, FIJACIÓN, CONEXIÓN MECÁNICA, CONEXIÓN ELÉCTRICA, PRUEBA, LIMPIEZA Y RETIRO DE SOBRANTES FUERA DE OBRA, EQUIPO DE SEGURIDAD, INSTALACIONES ESPECÍFICAS, DEPRECIACIÓN Y DEMÁS DERIVADOS DEL USO DE EQUIPO Y HERRAMIENTA, EN CUALQUIER NIVEL.","PZA.",1,0,null,0,0]
["10.-","SUMINISTRO Y COLOCACIÓN DE INTERRUPTOR TERMOMAGNÉTICO QO DE DOS POLOS DE 15 A 50 AMPERES, MARCA SQUARE D.","PZA",1,0,null,0,0]
["11.-","SUMINISTRO Y COLOCACIÓN DE INTERRUPTOR TERMOMAGNÉTICO QO DE UN POLO DE 15 A 50 AMPERES, MARCA SQUARE D.","PZA",3,0,null,0,0]
["12.-","PAGO DE UNIDAD DE VERIFICACION, CERTIFICADO POR LA SECRETARIA DE ENERGIA, AVALANDO LA INSTALACION ELECTRICA.  INCLUYE: CARTA DE VERIFICACION, DE INSTALACIONES EN ALTA Y BAJA TENSION Y SUBESTACION PARTICULAR, LOS PLANOS DE OBRATERMINADA FIRMADOS POR UN ING. ELECTRICO Y MEMORIA DE CALCULO, HACER LAS MODIFICACIONES A MEMORIA, CUADROS DE CARGA Y DIAGRAMAS UNIFILARES, EN CASO DE EXISTIR MODIFICACIONES.","PZA",1,0,null,0,0]
["13.-","TRAMITES DE REPRESENTACION ANTE LA COMISION FEDERAL DE ELECTRICIDAD Y PRIMER BIMESTRE DE SERVICIO,  INCLUYE: LOS TRAMITES DE SOLICITUD ESPECIAL PAGO DE TRANSICION ELECTRICA PARA CONEXIONES DE SUBESTACION Y ACOMETIDA, PAGO POR EL DEPOSITO EN GARANTIA  Y CONTRATACION DE SERVICIO, OBRA ELECTRICA POR PARTE DE LA COMPAÑIA SUMINISTRADORA, PAGO DE DEPOSITO EN GARANTIA.","PZA",1,0,null,0,0]
[null,"SUBTOTAL BAÑOS Y TEMPLETE",null,null,null,null,{"$f":"SUM(G163:G175)","v":0},0]
["I.-","MODULO DE BAÑOS",null,null,null,null,null,0]
["1.-","CIMENTACION",null,null,null,null,null,0]
["1.1.-","LIMPIEZA, TRAZO Y NIVELACIÓN DEL TERRENO CON EQUIPO TOPOGRÁFICO; INCLUYE: NIVEL DE MANGUERA Y NIVELETAS CON POLINES Y FAJILLAS, HILOS, CAL, MANO DE OBRA Y HERRAMIENTA, DESPALME DE TERRENO VEGETAL CAPA DE 20 CM. Y RETIRO DE LA MISMA FUERA DE LA OBRA, COLOCACIÓN DE BANCO DE NIVEL SEGÚN ESPECIFICACIONES. ( ÁREA DE EDIFICIO ).","M2",43.01,0,null,{"$f":"ROUND(D179*E179,2)","v":0},0]
["1.2.-","ZAPATA CORRIDA (Z-01) DE  DE 0.80 X 0.15 MTS. CONCRETO F'C=250 KG/CM2 IMPERMEABILIZANTE INTEGRAL SIKA.  ARMADA CON  VARILLA DEL # 3 A CADA 20 CMS. Y CONTRA TRABE DE 15 X 40 CMS. ARMADA CON 6 VARILLAS DEL # 3 Y ESTRIBOS DEL # 2 A CADA 20 CMS., INCLUYE :TRAZO, NIVELACION, EXCAVACION, PLANTILLA  F'C=100 KG/CM2 DE 5 CMS DE ESPESOR , RELLENO, AFINE, COMPACTACION, IMPERMEABILIZANTE, HERRAMIENTA Y MANO DE OBRA QUE INTERVENGAN, ELABORACIÓN DEL CONCRETO, FLETE A OBRA, DESPERDICIO, VERTIDO, ACARREO HASTA EL LUGAR DE SU UTILIZACIÓN, HABILITADO DEL ACERO DE REFUERZO, ANCLAJES,  COLOCACIÓN, AMARRES, CIMBRADO, DESCIMBRADO, LIMPIEZA Y RETIRO DE SOBRANTES FUERA DE OBRA, EQUIPO DE SEGURIDAD, INSTALACIONES ESPECÍFICAS, DEPRECIACIÓN Y DEMÁS DERIVADOS DEL USO DE HERRAMIENTA Y EQUIPO EN CUALQUIER NIVEL, (VER DETALLE DE ZAPATA.)","ML",33.049999999999997,0,null,0,0]
["1.3.-","CONSTRUCCION DE MURO DE ENRASE A BASE A 3 HILADAS A BASE DE BLOCK HUECO DE CONCRETO DE 15x20x40, ASENTADO CON MORTERO CEMENTO ARENA  PROP 1:4 Y CELDAS RELLENAS DE CONCRETO F'C= 150KG/CM2, VARILLA DE REFUERZO  DE 3/8\" @ 3ER CELDA ANCLADA A CIMENTACION, INCLUYE PRECIO DIRECTO DE LOS MATERIALES, MANO DE OBRA, HERRAMIENTA Y EQUIPO.","M2",22.2,0,null,0,0]
["1.4.-","ANCLAJE DE CASTILLOS (K) DE 0.15X0.15 MTS. HASTA 1.25 MTS. DE DESARROLLO, ARMADO CON 4 VARILLAS No.3 Y ESTRIBOS No.2 A/C 0.20 MTS. CONCRETO F' C=250 KG/CM2, INCLUYE; CARGO DIRECTO POR EL COSTO DE LOS MATERIALES, HERRAMIENTA Y MANO DE OBRA QUE INTERVENGAN, ELABORACIÓN DEL CONCRETO, FLETE A OBRA, DESPERDICIO, VERTIDO, ACARREO HASTA EL LUGAR DE SU UTILIZACIÓN, VIBRADO Y CURADO, PRUEBAS DE RESISTENCIA DEL CONCRETO, HABILITADO DEL ACERO DE REFUERZO, ANCLAJES,  COLOCACIÓN, AMARRES, CIMBRADO, DESCIMBRADO, LIMPIEZA Y RETIRO DE SOBRANTES FUERA DE OBRA, EQUIPO DE SEGURIDAD, INSTALACIONES ESPECÍFICAS, DEPRECIACIÓN Y DEMÁS DERIVADOS DEL USO DE HERRAMIENTA Y EQUIPO EN CUALQUIER NIVEL.","PZA",5,0,null,0,0]
["1.5.-","CADENA PARA DESPLANTE EN CIMENTACIÓN DE 0.15X0.20 MTS., ARMADA CON 4 VARILLAS No.3 Y ESTRIBOS No.2 A/C  20 CMS., CONCRETO F'C=250 KG/CM2, INCLUYE: INCLUYE; CARGO DIRECTO POR EL COSTO DE LOS MATERIALES, HERRAMIENTA Y MANO DE OBRA QUE INTERVENGAN, ELABORACIÓN DEL CONCRETO, FLETE A OBRA, DESPERDICIO, VERTIDO, ACARREO HASTA EL LUGAR DE SU UTILIZACIÓN, VIBRADO Y CURADO, PRUEBAS DE RESISTENCIA DEL CONCRETO,  HABILITADO DEL ACERO DE REFUERZO, ANCLAJES,  COLOCACIÓN, AMARRES, CIMBRADO, DESCIMBRADO, LIMPIEZA Y RETIRO DE SOBRANTES FUERA DE OBRA, EQUIPO DE SEGURIDAD, INSTALACIONES ESPECÍFICAS, DEPRECIACIÓN Y DEMÁS DERIVADOS DEL USO DE HERRAMIENTA Y EQUIPO EN CUALQUIER NIVEL.","ML",32.450000000000003,0,null,0,0]
[null,"SUBTOTAL CIMENTACION",null,null,0,null,{"$f":"SUM(G179:G183)","v":0},0]
["2.-","ALBAÑILERIA Y ACABADOS",null,null,null,null,null,0]
["2.1.-","MURO DE BLOCK HUECO DE CONCRETO DE 15x20x40 CMS., ASENTADO CON MORTERO CEMENTO ARENA PROP. 1:4, INCLUYE; VARILLA LONGITUDINAL DE 3/8\" @ TERCER HILADA, CARGO DIRECTO POR EL COSTO DE LOS MATERIALES QUE INTERVENGAN, FLETE A OBRA, DESPERDICIO, ACARREO HASTA EL LUGAR DE SU UTILIZACIÓN, CORTE, AJUSTE, ELABORACIÓN DEL MORTERO, PRUEBAS DE LABORATORIO, HABILITADO,   LIMPIEZA Y RETIRO DE SOBRANTES FUERA DE OBRA, EQUIPO DE SEGURIDAD, INSTALACIONES ESPECIFICAS, DEPRECIACIÓN Y DEMÁS DERIVADOS DEL USO DE HERRAMIENTA Y EQUIPO, EN CUALQUIER NIVEL.","M2",125.6,0,null,{"$f":"ROUND(D186*E186,2)","v":0},0]
["2.2.-","CASTILLO DE CONCRETO K-1 SECCION DE 15x20 CMS F'C=200 KG/CM2. AGREGADO MÁXIMO DE 19 MM, ARMADO CON 4 VARILLAS DE 3/8\" Y ESTRIBOS @ 20 CMS 5 ESTRIBOS EXTREMOS  A CADA 10 CMS .,  INCLUYE; CARGO DIRECTO POR EL COSTO DE LOS MATERIALES, HERRAMIENTA Y MANO DE OBRA QUE INTERVENGAN, FLETE A OBRA, DESPERDICIO, ACARREO HASTA EL LUGAR DE SU UTILIZACIÓN, HABILITADO DEL ACERO DE REFUERZO, ANCLAJES,  CIMBRADO, DESCIMBRADO, ELABORACIÓN DEL CONCRETO,  VERTIDO, VIBRADO,  CURADO, PRUEBAS DE LABORATORIO, LIMPIEZA Y RETIRO DE SOBRANTES FUERA DE OBRA, EQUIPO DE SEGURIDAD, INSTALACIONES ESPECIFICAS, DEPRECIACIÓN Y DEMÁS DERIVADOS DEL USO DE HERRAMIENTA Y EQUIPO, EN CUALQUIER NIVEL.","ML",26.52,0,null,0,0]
["2.3.-","CASTILLO DE CONCRETO K-02  SECCION DE 15x30 CMS F'C=200 KG/CM2. AGREGADO MÁXIMO DE 19 MM, ARMADO CON 6 VARILLAS DE 3/8\" Y ESTRIBOS @ 20 CMS 10 ESTRIBOS EXTREMOS  A CADA 10 CMS .,  INCLUYE; DESDE ZAPATA PARTE SUERIOR HASTA LECHO BAJO DE LOSA NERVADA , CRUCE DE VARILLAS EN ELEMENTOS DE CONCRETOCARGO DIRECTO POR EL COSTO DE LOS MATERIALES, HERRAMIENTA Y MANO DE OBRA QUE INTERVENGAN, FLETE A OBRA, DESPERDICIO, ACARREO HASTA EL LUGAR DE SU UTILIZACIÓN, HABILITADO DEL ACERO DE REFUERZO, ANCLAJES,  CIMBRADO, DESCIMBRADO, ELABORACIÓN DEL CONCRETO,  VERTIDO, VIBRADO,  CURADO, PRUEBAS DE LABORATORIO, LIMPIEZA Y RETIRO DE SOBRANTES FUERA DE OBRA, EQUIPO DE SEGURIDAD, INSTALACIONES ESPECIFICAS, DEPRECIACIÓN Y DEMÁS DERIVADOS DEL USO DE HERRAMIENTA Y EQUIPO, EN CUALQUIER NIVEL.","ML",52.39,0,null,0,0]
["2.4.-","TRABE TA 01 AHOGADA  EN LOSA NERVADA DE  DE CONCRETO F'C=200KG/CM2 DE 20x20 CMS, ARMADA CON 4 VARILLAS DE 3/8\" Y ESTRIBOS DE 1/4\" @ 20CMS,  INCLUYE; CARGO DIRECTO POR EL COSTO DE LOS MATERIALES, HERRAMIENTA Y MANO DE OBRA QUE INTERVENGAN, ELABORACIÓN DEL CONCRETO, FLETE A OBRA, DESPERDICIO, VERTIDO, ACARREO HASTA EL LUGAR DE SU UTILIZACIÓN, HABILITADO DEL ACERO DE REFUERZO, ANCLAJES,  COLOCACIÓN, AMARRES, CIMBRADO, DESCIMBRADO, LIMPIEZA Y RETIRO DE SOBRANTES FUERA DE OBRA, EQUIPO DE SEGURIDAD, INSTALACIONES ESPECÍFICAS, DEPRECIACIÓN Y DEMÁS DERIVADOS DEL USO DE HERRAMIENTA Y EQUIPO EN CUALQUIER NIVEL.","ML",9,0,null,0,0]
["2.5.-","TRABE TA 02 AHOGADA EN LOSA NERVADA DE CONCRETO F'C=200KG/CM2 DE 30x20 CMS, ARMADA CON 6 VARILLAS DE 3/8\" Y ESTRIBOS DE 1/4\" @ 20CMS,  INCLUYE; CARGO DIRECTO POR EL COSTO DE LOS MATERIALES, HERRAMIENTA Y MANO DE OBRA QUE INTERVENGAN, ELABORACIÓN DEL CONCRETO, FLETE A OBRA, DESPERDICIO, VERTIDO, ACARREO HASTA EL LUGAR DE SU UTILIZACIÓN, HABILITADO DEL ACERO DE REFUERZO, ANCLAJES,  COLOCACIÓN, AMARRES, CIMBRADO, DESCIMBRADO, LIMPIEZA Y RETIRO DE SOBRANTES FUERA DE OBRA, EQUIPO DE SEGURIDAD, INSTALACIONES ESPECÍFICAS, DEPRECIACIÓN Y DEMÁS DERIVADOS DEL USO DE HERRAMIENTA Y EQUIPO EN CUALQUIER NIVEL.","ML",25.3,0,null,0,0]
["2.6.-","CADENA DE CERRAMIENTO DE CONCRETO F'C=200KG/CM2 DE 15x20 CMS, ARMADA CON 4 VARILLAS DE 3/8\" Y ESTRIBOS DE 1/4\" @ 20CMS,  INCLUYE; CARGO DIRECTO POR EL COSTO DE LOS MATERIALES, HERRAMIENTA Y MANO DE OBRA QUE INTERVENGAN, ELABORACIÓN DEL CONCRETO, FLETE A OBRA, DESPERDICIO, VERTIDO, ACARREO HASTA EL LUGAR DE SU UTILIZACIÓN, HABILITADO DEL ACERO DE REFUERZO, ANCLAJES,  COLOCACIÓN, AMARRES, CIMBRADO, DESCIMBRADO, LIMPIEZA Y RETIRO DE SOBRANTES FUERA DE OBRA, EQUIPO DE SEGURIDAD, INSTALACIONES ESPECÍFICAS, DEPRECIACIÓN Y DEMÁS DERIVADOS DEL USO DE HERRAMIENTA Y EQUIPO EN CUALQUIER NIVEL.","ML",34.299999999999997,0,null,0,0]
["2.7.-","APLANADO EN MURO CON MORTERO CEMENTO - ARENA 1:4, A PLOMO Y REGLA DE 1,5 A 2,0 CMS. DE ESPESOR, INCLUYE; CARGO DIRECTO POR EL COSTO DE LOS MATERIALES QUE INTERVENGAN, FLETE A OBRA, DESPERDICIO, ACARREO HASTA EL LUGAR DE SU UTILIZACIÓN, PICADO DE LAS ÁREAS DE CONCRETO, ELABORACIÓN DE MORTERO, IMPERMEABILIZANTE INTEGRAL AL MORTERO, MAESTREADO, PERFILADO, REMATES, LIMPIEZA Y RETIRO DE SOBRANTES FUERA DE OBRA, EQUIPO DE SEGURIDAD, INSTALACIONES ESPECÍFICAS, DEPRECIACIÓN Y DEMÁS DERIVADOS DEL USO DE HERRAMIENTA Y EQUIPO, EN CUALQUIER NIVEL.",null,null,null,null,0,0]
[null,"EN EXTERIORES Y EXTERIORES , ACABADO FLOTEADO","M2",191.57,0,null,0,0]
["2.8.-","SUMINISTRO Y APLICACIÓN DE PINTURA VINÍLICA DE MARCA Y CALIDAD (AHULADA Y LAVABLE), AUTORIZADA POR EL LA DIRECCION DE OBRAS PUBLICAS, INCLUYE; CARGO DIRECTO POR EL COSTO DE LOS MATERIALES  Y MANO DE OBRA QUE INTERVENGAN, FLETE A OBRA, DESPERDICIO, ACARREO HASTA EL LUGAR DE SU UTILIZACIÓN, PREPARACIÓN DE LA SUPERFICIE, FONDEO, SELLADOR, RETAPADO, EMPLASTECIDO Y APLICACIÓN DE DOS CAPAS COMO MÍNIMO, PROTECCIÓN CON HULE, CINTA O PAPEL, LIMPIEZA Y RETIRO DE SOBRANTES FUERA DE OBRA, EQUIPO DE SEGURIDAD, INSTALACIONES ESPECÍFICAS, DEPRECIACIÓN Y DEMÁS DERIVADOS DEL USO DE HERRAMIENTA Y EQUIPO, EN CUALQUIER NIVEL; EN MUROS APLANADOS CON MEZCLA, ACABADO SERROTEADO O RUGOSO.",null,null,null,null,{"$f":"ROUND(D194*E194,2)","v":0},0]
[null,"EN MUROS EXTERIORES, INTERIORES , PRETILES Y PLAFONES ","M2",227.8,0,null,0,0]
["2.9.-","APLANADO DE YESO A PLOMO EN PLAFOND, REGLA Y NIVEL INCLUYE; CARGO DIRECTO POR EL COSTO DE LOS MATERIALES Y MANO DE OBRA  QUE INTERVENGAN, FLETE A OBRA, DESPERDICIO, ACARREO HASTA EL LUGAR DE SU UTILIZACIÓN, ELABORACIÓN DE MEZCLA HECHA EN OBRA, PREPARACIÓN DE LA SUPERFICIE,  PICADO EN SU CASO, PERFILAR HUECOS PARA INSTALACIONES, BOQUILLAS, REMATES, CORTES DE DIAMANTE EN JUNTAS, MAESTREADO, LIMPIEZA Y RETIRO DE SOBRANTES FUERA DE OBRA, EQUIPO DE SEGURIDAD, INSTALACIONES ESPECÍFICAS, DEPRECIACIÓN Y DEMÁS DERIVADOS DEL USO DE HERRAMIENTA Y EQUIPO, EN  CUALQUIER  NIVEL.","M2",36.229999999999997,0,null,0,0]
["2.10.-","SUMINISTRO Y COLOCACIÓN DE PISO  VITRIFICADO DE PRIMERA CALIDAD ANTIDERRAPANTE EN ZONA DE BAÑOS, COLOR CREMA PISO SCABAS INTERCERAMIC DE 60X60 CMS. RECTIFICADO, COLOCADO A HUESO SOBRE FIRME NIVELADO Y VERIFICADO, INCLUYE: TRAZO, RECORTES, CORTES, DESPERDICIOS, ACARREOS INTERNOS, ALMACENAMIENTO, EMBOQUILLADOR ANTIBACTERIAL SIN ARENA, LIMPIEZA GRUESA Y FINA, CONCEPTO A SATISFACCIÓN DE SUPERVISIÓN.","M2",36.6,0,null,0,0]
[2.11,"PISO O FIRME DE CONCRETO F'C=150 KG/CM2 DE 10 CM. DE ESPESOR. AGREGADO MÁXIMO DE 19 MM. ,  INCLUYE;  SUMINISTRO E INSTALACION Y FIJACION DE MALLA ELECTROSOLDADA 6-6/10-10 SOPORTADA SOBRE SILLETAS PLASTIFICADA DE 5 CMS  ALTURA 4 PZAS. POR M2 CARGO DIRECTO POR EL COSTO DE LOS MATERIALES Y MANO DE OBRA QUE INTERVENGAN, FLETE A OBRA. DESPERDICIO, ACARREO HASTA EL LUGAR DE SU UTILIZACIÓN, TRAZO Y RECTIFICACIÓN DE NIVELES, MAESTREADO, CIMBRA EN FRONTERAS, LIMPIEZA Y RETIRO DE SOBRANTES FUERA DE OBRA, ELABORACIÓN, EQUIPO DE SEGURIDAD, INSTALACIONES ESPECÍFICAS, DEPRECIACIÓN Y DEMÁS DERIVADOS DEL USO DE HERRAMIENTA Y EQUIPO EN CUALQUIER NIVEL.","M2",36.6,0,null,0,0]
[2.12,"PRETIL DE MURO DE BLOCK CON MURO DE BLOCK DE 15X20X40 CMS , JUNTEADO CON CEMENTO-ARENA, EN PROPORCION 1:5, CON ALTURA 0.80 CMS., INCLUYE: CARGO DIRECTO POR EL COSTO DE LOS MATERIALES Y MANO DE OBRA QUE INTERVENGAN, FLETE A OBRA, DESPERDICIO, ACARREO HASTA EL LUGAR DE SU UTILIZACIÓN, TRAZO, ELEVACIÓN, CORTES, DESPERDICIOS, SE CONTINUARAN LOS CASTILLOS  CON EL MISMO ARMADO PARA AMARRAR PRETIL Y UNA CADENA DE 15 X 20 CMS  LIMPIEZA Y RETIRO DE SOBRANTES FUERA DE OBRA, EQUIPO DE SEGURIDAD, INSTALACIONES ESPECIFICAS, DEPRECIACIÓN Y DEMÁS DERIVADOS DEL USO DE HERRAMIENTA Y EQUIPO, EN CUALQUIER NIVEL.","M2",22.4,0,null,0,0]
["2.13.-","SUMINISTRO Y APLICACIÓN DE ENTORTADO EN AZOTEA CON MORTERO CEMENTO - ARENA PROPORCION 1:5, CON UN  PROMEDIO DE 5 CMS. DE ESPESOR., CON MATERIAL LIGERO DE LA REGIÓN, PARA DAR PENDIENTES; INCLUYE; CARGO DIRECTO POR EL COSTO DE LOS MATERIALES QUE INTERVENGAN, FLETE A OBRA, DESPERDICIO, ACARREO HASTA EL LUGAR DE SU UTILIZACIÓN, ELEVACIÓN, ELABORACIÓN, TENDIDO, APISONADO, MAESTREADO, NIVELADO, LIMPIEZA Y RETIRO DE SOBRANTES FUERA DE OBRA, EQUIPO DE SEGURIDAD, INSTALACIONES ESPECÍFICAS, DEPRECIACIÓN Y DEMÁS DERIVADOS DEL USO DE HERRAMIENTA Y EQUIPO, EN CUALQUIER NIVEL. ","M2",36.9,0,null,0,0]
["2.14.-","CHAFLÁN DE MORTERO SECCIÓN TRIANGULAR DE 10 CM. CON MORTERO CEMENTO-ARENA EN PROPORCIÓN 1:5, ACABADO PULIDO., INCLUYE; CARGO DIRECTO POR EL COSTO DE LOS MATERIALES QUE INTERVENGAN, FLETE A OBRA, DESPERDICIO, ACARREO HASTA EL LUGAR DE SU UTILIZACIÓN, ELEVACIÓN, PICADO EN ÁREAS DE CONCRETO, ELABORACIÓN,  LECHAREADO, LIMPIEZA Y RETIRO DE SOBRANTES FUERA DE OBRA, EQUIPO DE SEGURIDAD, INSTALACIONES ESPECÍFICAS, DEPRECIACIÓN Y DEMÁS DERIVADOS DEL USO DE HERRAMIENTA Y EQUIPO, EN CUALQUIER NIVEL. ","ML",35.340000000000003,0,null,0,0]
["2.15.-","IMPERMEABILIZACIÓN EN AZOTEA A BASE DE IMPERMEABLE ROJO; EN PROPORCIÓN DE 2 LTS./M2. APLICACIÓN A TRES MANOS, ALTERNADA CON MALLA REFORZADA REVOFLEX Ó SIMILAR. GARANTÍA MÍNIMA DE 10 AÑOS Ó SIMILAR POR ESCRITO. INCLUYE: CARGO DIRECTO POR EL COSTO DE LOS MATERIALES Y MANO DE OBRA QUE INTERVENGAN. FLETE A OBRA, DESPERDICIO, ACARREO HASTA EL LUGAR DE SU UTILIZACIÓN, COLOCACIÓN, LIMPIEZA Y PREPARACIÓN DE LA SUPERFICIE, REFUERZO EN PUNTOS CRÍTICOS, COMO; BAJADAS DE AGUAS PLUVIALES, SALIDAS DE DUCTOS, Y VENTILADORES, TRASLAPES SEGÚN EL CASO, LIMPIEZA Y RETIRO DE SOBRANTES FUERA DE OBRA, EQUIPO DE SEGURIDAD, INSTALACIONES ESPECIFICAS, DEPRECIACIÓN Y DEMÁS DERIVADOS DEL USO DE HERRAMIENTA Y EQUIPO EN CUALQUIER NIVEL.","M2",36.9,0,null,0,0]
["2.16.-","MESETA DE CONCRETO F'c=150 KG/CM2. DE 10 CM. DE ESPESOR, ARMADA CON ACERO DEL No.3 A CADA 20 CM. EN AMBOS SENTIDOS Y 75 CMS. DE ANCHO, INCLUYE: CARGO DIRECTO POR EL COSTO DE LOS MATERIALES Y MANO DE OBRA REQUERIDOS, FLETES, ACARREO HASTA EL LUGAR DE SU UTILIZACIÓN, ELABORACIÓN DEL CONCRETO, CIMBRA, DESCIMBRADO, HABILITADO DEL ACERO, ARMADO, AMARRES, COLADO, VIBRADO, CURADO, FORRADA DE AZULEJO, LIMPIEZA (CON AGUA Y JABON) Y RETIRO DE SOBRANTES FUERA DE OBRA, DEPRECIACIÓN Y DEMÁS CARGOS DERIVADOS DEL USO DE HERRAMIENTA Y EQUIPO, EN CUALQUIER NIVEL.","M2",4.92,0,null,0,0]
["2.17.-","CONSTRUCCIÓN DE BASE PARA TINACO DE 1.20 X 1.20 M. . INCLUYE: CARGO DIRECTO POR EL COSTO DE LOS MATERIALES Y MANO DE OBRA QUE INTERVENGAN, FLETE A OBRA, ACARREO HASTA EL LUGAR DE SU UTILIZACIÓN, DESPERDICIO, TRAZO, NIVELES, FIRME DE 10 CM. DE ESPESOR, CON CONCRETO F´C=100 KG/CM2. AGREGADO MÁXIMO DE 19 MM.,ELABORACIÓN Y COLOCACIÓN DE CONCRETO, CIMBRA Y DESCIMBRA, HABILITADO Y ARMADO DE ACERO, LIMPIEZA Y RETIRO DE SOBRANTES FUERA DE OBRA, EQUIPO DE SEGURIDAD, INSTALACIONES ESPECÍFICAS, DEPRECIACIÓN Y DEMÁS DERIVADOS DEL USO DE HERRAMIENTA, EQUIPO A CUALQUIER ALTURA. ","PZA",1,0,null,0,0]
["2.18.-","SUMINISTRO Y COLOCACIÓN DE GARGOLA  RECTANGULAR  DE APROXIMADAMENTE 40 CMS DE LONGITUD DE CONCRETO, ASENTADA CON MORTERO CEMENTO-ARENA PROPORCIÓN 1:3. INCLUYE: MATERIAL Y MANO DE OBRA.","PZA",2,0,null,{"$f":"ROUND(D205*E205,2)","v":0},0]
["2.19.-","SUMINISTRO Y COLOCACIÓN AZULEJO DE 20 X 30 CMS. COLOR CREMA DE PRIMERA RECTIFICADO , INCLUYE; CARGO DIRECTO POR EL COSTO DE LOS MATERIALES Y MANO DE OBRA QUE INTERVENGAN, FLETE A OBRA, DESPERDICIO, ACARREO HASTA EL LUGAR DE SU UTILIZACIÓN, TRAZO, PREPARACIÓN DE LA SUPERFICIE, MAESTREADO, ELABORACIÓN DE MORTERO EN OBRA EN SU CASO, CORTES, REMATES A 45° , EMBOQUILLADO, LECHAREADO, LIMPIEZA Y RETIRO DE SOBRANTES FUERA DE OBRA, EQUIPO DE SEGURIDAD, INSTALACIONES ESPECÍFICAS, DEPRECIACIÓN Y DEMÁS DERIVADOS DEL USO DE HERRAMIENTA Y EQUIPO, EN CUALQUIER NIVEL. ","M2",61.32,0,null,{"$f":"ROUND(D206*E206,2)","v":0},0]
["2.20.-","REPELLADO EN MUROS DE BLOCK O TABIQUE CON MORTERO CEMENTO-ARENA EN PROPORCIÓN DE 1:3; A PLOMO, NIVEL Y REGLA, PARA ACABADO DE MURO; INCLUYE: PERFILES, REMATES Y EMBOQUILLADOS.","M2",61.32,0,null,{"$f":"ROUND(D207*E207,2)","v":0},0]
["2.21.-","FABRICACION DE MINGITORIO A BASE DE BLOCK DE CEMENTO RECUBIERTO DE AZULEJO  EN MEDIDAS 2.45X0.50.X0.50 MTS  INC. SARDINEL FORJADO  DE 10 CMS FORJADO DE CHAROLA DE DESCARGA, COLADERA CIRCULAR COMO DESAGUE Y  MATERIAL Y MANO DE OBRA , CORTES DESPERDICIOS DE AZULEJO, LIMPIEZA FINAL ","PZA",1,0,null,{"$f":"ROUND(D208*E208,2)","v":0},0]
["2.22.-","CASTILLO AHOGADO EN MURO DE BLOCK Y ENRASE CON UNA VARILLA 3/8\" CELDAS DE BLOCK RELLENAS DE CONCRETO F'C= 150 KG/CM2, INCLUYE: DESFONDAR BLOCK, COLADO, RECORTES Y CRUCES DE VARILLAS.","ML",43.2,0,null,{"$f":"ROUND(D209*E209,2)","v":0},0]
[null,"SUBTOTAL ALBAÑILERIA Y ACABADOS",null,null,0,null,{"$f":"SUM(G186:G209)","v":0},0]
["3.-","ESTRUCTURA",null,null,null,null,null,0]
[3.1,"ELABORACION DE LOSA NERVADA DE CONCRETO F'C=250KG/CM2 DE 25 CMS DE ESPESOR Y CASETON DE POLIESTIRENO EXPANDIDO  DE 60x60x20 CMS  CAPA DE COMPRESION DE 5 CMS DE ESPESOR Y MALLA 6-6/10/10, NERVADURA NV 01  DE 10 x 20 CMS REFORZADA CON 2 VARILLAS DE 3/8\" LONGITUDINALES Y ESTRIBOS CON ALAMBRON 1/4\" @ 40 CMS EN FORMA DE \"S\" CON 35 CMS DE DESARROLLO; CARGO DIRECTO POR EL COSTO DE LOS MATERIALES, HERRAMIENTA Y MANO DE OBRA QUE INTERVENGAN, ELABORACIÓN DEL CONCRETO, FLETE A OBRA, DESPERDICIO, VERTIDO, ACARREO HASTA EL LUGAR DE SU UTILIZACIÓN, ANCLAJES,  COLOCACIÓN,  HABILITADO DEL ACERO DE REFUERZO, AMARRES, CIMBRADO, DESCIMBRADO, LIMPIEZA Y RETIRO DE SOBRANTES FUERA DE OBRA, EQUIPO DE SEGURIDAD, INSTALACIONES ESPECÍFICAS, DEPRECIACIÓN Y DEMÁS DERIVADOS DEL USO DE HERRAMIENTA Y EQUIPO EN CUALQUIER NIVEL.","M2",42.64,0,null,{"$f":"ROUND(D212*E212,2)","v":0},0]
[null,"SUBTOTAL ESTRUCTURA",null,null,null,null,{"$f":"SUM(G212)","v":0},{"$f":"ROUND(D213*E213,2)","v":0}]
["4.-","INSTALACIONES HIDROSANITARIAS",null,null,null,null,null,0]
["4.1.-","SALIDA HIDROSANITARIA PARA  MUEBLE,   A BASE DE TUBO HIDRÁULICO CPVC, AGUA FRÍA Y CALIENTE, Ø 3/4\" Y 1/2\" Y SANITARIO DE PVC DE DIÁMETROS 4\" Y 2\" CON CAMPANA ANGER LISO PARA CALENTADOR, W.C., MINGITORIO, LAVABO, TARJA, INCLUYE: MANGUERA ALIMENTADORA, LLAVE DE ANGULO, CONECTOR HEMBRA, CODOS DE 90° Y 45°, CODOS, TALÓN, REDUCCIONES, COPLES, YEES, PEGAMENTO PVC, DRENADO  HASTA PRIMER  REGISTRO, ACCESORIOS Y TODOS LOS MATERIALES NECESARIOS Y MANO DE OBRA PARA SU CORRECTO FUNCIONAMIENTO, HERRAMIENTA, EXCAVACIONES, RANURAS, RESANES, PASOS EN ESTRUCTURA, PROTECCIÓN CON PVC, PRUEBAS DE PRESIÓN Y ESCURRIMIENTO, RELLENOS COMPACTOS, CONCEPTO DE ACUERDO A PLANO DE PROYECTO Y A SATISFACCIÓN DE SUPERVISIÓN.","SAL",16,0,null,{"$f":"ROUND(D215*E215,2)","v":0},0]
["4.2.-","SUMINISTRO Y COLOCACION DE TINACO MARCA ROTOPLAS DE CAPACIDAD DE 1,100,00 LTS., CON ACCESORIOS, DE ACUERDO A ESPECIFICACIONES DE LA DIRECCION DE OBRAS PUBLICAS, INCLUYE; ELECTRONIVEL, FLOTADOR, FIJACION, ELEVACION DE MATERIALES, CARGO DIRECTO POR EL COSTO DE MANO DE OBRA Y MATERIALES REQUERIDOS, FLETE A OBRA, ACARREOS, NIVELACIÓN, FIJACIÓN, PRUEBAS, LIMPIEZA Y RETIRO DE SOBRANTES FUERA DE OBRA, EQUIPO DE SEGURIDAD, INSTALACIONES ESPECÍFICAS DEPRECIACIÓN Y DEMÁS CARGOS DERIVADOS DEL USO Y EQUIPO Y HERRAMIENTA EN CUALQUIER NIVEL.","PZA",1,0,null,{"$f":"ROUND(D216*E216,2)","v":0},0]
["4.3.-","SUMINISTRO Y COLOCACIÓN DE MUEBLE SANITARIO W.C. DE COLOR, AHORRADOR DE AGUA DE 6 LITROS  DE DESCARGA,  PRIMERA CALIDAD CON TANQUE, TAPA, PIJAS, BRIDA DE PVC, HERRAJES, SELLADO PERIMETRAL, MANGUERA ALIMENTADORA, LLAVE DE ANGULO, TAQUETES, PRUEBAS DE FUNCIONAMIENTO, CONCEPTO TERMINADO A SATISFACCIÓN DE SUPERVISIÓN.","PZA",6,0,null,{"$f":"ROUND(D217*E217,2)","v":0},0]
["4.4.-","SUMINISTRO Y COLOCACIÓN DE INODORO, DESCARGA 4.8 LITROS LÍNEA VERDE, PARA PERSONAS CON CAPACIDADES DIFERENTES, TAZA ALARGADA MODELO VIENNA \"H\" DE VITROMEX O SIMILAR EN CALIDAD Y PRECIO; INCLUYE: VÁLVULA FLOTADOR FLUIDMASTER 400 LS PRO DE ALUMINIO DE BRONCE O PRIMERA CALIDAD CUELLO DE CERA, PIJAS, MANGUERAS ALIMENTADORAS COFLEX, LLAVE DE CONTROL ANGULAR COMPACTA SIN CONTRATUERCA 4015 CON ASIENTO SOLIDO COMPLETO.","PZA",2,0,null,{"$f":"ROUND(D218*E218,2)","v":0},0]
["4.5.-","SUMINISTRO Y COLOCACIÓN DE ACCESORIOS PARA MINUSVALIDOS DE BARRA DE APOYO CON TUBO DE ACERO INOXIDABLE CROMADO O DE ALUMINIO DE 3.2 CMS 1 1/4\" DE DIAMETRO, CAL. 16 Y GANCHO METALICO PARA LA COLOCACION DE MULETAS., INCLUYE; CARGO DIRECTO POR EL COSTO DE MANO DE OBRA Y MATERIALES REQUERIDOS, FLETE A OBRA, ACARREOS, TRAZO, NIVELACIÓN, FIJACIÓN Y PRUEBA, LIMPIEZA Y RETIRO DE SOBRANTES FUERA DE OBRA, EQUIPO DE SEGURIDAD, DEPRECIACIÓN Y DEMÁS CARGOS DERIVADOS DEL USO DE EQUIPO Y HERRAMIENTA, EN CUALQUIER NIVEL.","JGO",2,0,null,{"$f":"ROUND(D219*E219,2)","v":0},0]
["4.6.-","SUMINISTRO Y COLOCACIÓN DE LAVABO CUADARADO DE SOBREPONER DE COLOR INDICADO POR SUPERVISION, PRIMERA CALIDAD, EMPOTRADO EN MESETA DE CONCRETO, INCLUYE:  SELLADO PERIMETRAL, LLAVES DE METAL DE MEDIA VUELTA, LLAVE MEZCLADORA , DE PRIMERA CALIDAD,CESPOL, CUELLO DE GANSO, CONTRA REJILLAS, EMPAQUE DE HULE EN DESCARGA, MATERIALES NECESARIOS Y MANO DE OBRA, ACARREOS, ELEVACIÓN, PRUEBAS DE FUNCIONAMIENTO, CONCEPTO TERMINADO A SATISFACCIÓN DE SUPERVISIÓN.","PZA",8,0,null,{"$f":"ROUND(D220*E220,2)","v":0},0]
["4.7.-","SUMINISTRO Y COLOCACIÓN DE CISTERNA ROTOPLAS O SIMILAR TRICAPA, VERTICAL DE 5000 LTS. DE CAPACIDAD CON TAPA, INCLUYE: EXCAVACION, PLANTILLA PARA DESPLANTE CON CONCRETO F'C=  100 KG/CM2, ARMADA CON VARILLA DEL No.- 3 @ 20 CMS. EN AMBOS SENTIDOS, ADEMADA CON BLOCK 15X20X40CS., CON CELDAS RELLENAS DE CONCRETO F'C= 100 KG/CM2  Y VARILLAS AHOGADAS EN LAS ESQUINAS DE 3/8 ,RELLENO CON MATERIAL PRODUCTO DE EXCAVACION, COLOCACIÓN, MANEJO, BAJADA, CONEXIÓN DE TUBERÍA DE LLENADO, PICHANCHA, FLOTADOR, LLAVE DE CIERRE AUTOMÁTICO, TUBO NECESARIO DE COBRE, DIVERSOS DIÁMETROS, ACCESORIOS NECESARIOS, Y TODO LO NECESARIO PARA SU PERFECTO LLENADO Y DRENADO CON BOMBA ELÉCTRICA,  ALIMENTACION DE LA RED MUNICIPAL, CONCEPTO A SATISFACCIÓN DE SUPERVISIÓN Y TERMINADO, LUGAR Y PROFUNDIDAD INDICADA EN PLANOS DE PROYECTO Y/O POR SUPERVISIÓN.","PZA",1,0,null,{"$f":"ROUND(D221*E221,2)","v":0},0]
["4.8.-","SUMINISTRO Y COLOCACIÓN DE BOMBA DE 1\" DE H.P. MARCA EVANS, FIJADA A PISO CON TORNILLOS GALVANIZADOS DE 1/4\" X1\", TAQUETES EXPANSIVOS, INCLUYE: MANO DE OBRA, CONEXION ELECTRICA, ELECTRONIVELES AHOGADOS EN TUBERIA DE PVC DE 1/2\", EXCAVACION, CONEXIÓN HIDRAULICA APICHANACHA DE CISTERNA CON TUBERIA DE 1\" DE CPVC Y ALIMENTACION A TINACOS CON TUBERIA DE 3/4\" EN CPVC, ","PZA",1,0,null,0,{"$f":"ROUND(D222*E222,2)","v":0}]
[null,"SUBTOTAL INSTALACIONES HIDROSANITARIAS",null,null,0,null,{"$f":"SUM(G215:G221)","v":0},0]
["5.-","HERRERIA Y CANCELERIA",null,null,null,null,null,0]
["5.1.-","SUMINISTRO Y COLOCACION  PUERTA EN MEDIDA 1.00X2.20 MTS  CON DUELA CALIBRE 18 PERFIL COMERCIAL, MARCO Y CONTRAMARCO, JALADERA AMBOS LADOS, CHAPA DE PARCHE  MARCA PHILLIPS,  PICAPORTE, BISAGRAS DE 3\", INCLUYE; CARGO DIRECTO POR EL COSTO DE LOS MATERIALES Y MANO DE OBRA QUE INTERVENGAN, FLETE A OBRA, DESPERDICIO, ACARREO HASTA EL LUGAR DE SU UTILIZACIÓN, TRAZO Y NIVELACIÓN, DOBLECES , CORTE, ENERGÍA ELÉCTRICA, OXÍGENO Y ACETILENO, SOLDADO, SOLDADURA, ELECTRODOS,  ESMERILADO, RESANES, PINTURA ANTICORROSIVA PRIMARIA EN SU CASO, PINTURA ESMALTE EN COLOR INDICADO POR SUPERVISION, LIJADO,HABILITADO, ARMADO, LIMPIEZA Y RETIRO DE SOBRANTES FUERA DE OBRA, EQUIPO DE SEGURIDAD, INSTALACIONES ESPECÍFICAS, DEPRECIACIÓN Y DEMÁS DERIVADOS DEL USO DE HERRAMIENTA Y EQUIPO. ( VER PLANO)","PZA",2,0,null,{"$f":"ROUND(D225*E225,2)","v":0},0]
["5.2.-","SUMINISTRO, CONSTRUCCIÓN Y COLOCACION DE REJA  FIJA DE HERRERÍA  A BASE DE PTR ROJO DE 1.5\" X 1.5 COMO MARCO Y REDONDO LISO DE 1/2\" EN TRAVESAÑOS VERTICALES, A CADA 10 CMS. DE SEPARACIÓN, FIJADAS A MARCO CON SOLDADURA 6011, INCLUYE: MATERIALES, SOLDADURA, PRIMER, ESMALTE MATE ANTICORROSIVO, CORTES, DESPERDICIOS, ACARREOS, PLOMEO, ALINEACIÓN, ESMERILADO (VER PLANO DE DETALLES, JUICIOS ORALES) CONCEPTO A SATISFACCIÓN DE SUPERVISIÓN.","M2",0.48,0,null,{"$f":"ROUND(D226*E226,2)","v":0},0]
["5.3.-","SUMINISTRO Y COLOCACIÓN DE VENTANA DE ALUMINIO NATURAL  LÍNEA 3000 CON VIDRIO COLOR NATURAL DE 6 MM, INCLUYE: CORTES, TORNILLERÍA, EMPAQUES, MANEJO, ELEVACIÓN, DESPERDICIOS, SELLADO PERIMETRAL AMBOS LADOS CON SILIKON, PLOMEO, ALINEACIÓN, CONCEPTO A SATISFACCIÓN DE SUPERVISIÓN.",null,null,null,null,null,0]
[null,"V-1 DE 0.60 X 0.40 M.","PZA",2,0,null,{"$f":"ROUND(D228*E228,2)","v":0},0]
["5.4.-","SUMINISTRO, HABILITADO Y COLOCACIÓN DE MAMPARAS EN SERVICIOS SANITARIOS A BASE DE PERFILES M225 CALIBRE 18, P100 CALIBRE 18, DUELA 170 CALIBRE 20, JALADERA CON SOLERA 1 X 3/16\" PASADOR PARA SOBREPONER DE 3 /12\" SOLERA PARA FIJAR MARCO DE 1/8\" X 1/2\"; INCLUYE: FIJACIÓN CON TAQUETE EXPANSIVO Y PIJA CONICA DE 5/16\", UNA MANO DE PRIMARIO EPÓXICO ANTICORROSIVO EA P-10 COLOR BLANCO CON CATALIZADOR DISOLUCIÓN A BASE DE SOLVENTE Y 2 MANOS DE PINTURA ESMALTE EN ACABADO FINAL, COLOR DEFINIDO POR LA RESIDENCIA.","M2",20.25,0,null,{"$f":"ROUND(D229*E229,2)","v":0},0]
[null,"SUBTOTALHERRERIA Y CANCELERIA",null,null,0,null,{"$f":"SUM(G225:G229)","v":0},0]
["6.-","BIODIGESTOR",null,null,0,null,null,0]
[6.1,"SUMINISTRO Y COLOCACIÓN DE BIODIGESTOR AUTOLIMPIABLE RP-7000, SISTEMA FOSAPLAS, MARCA ROTOPLAS, VERTICAL DE 7,000 LTS. DE CAPACIDAD CON TAPA, PARA SERVICIO DE 300 PERSONAS, INCLUYE: EXCAVACION, PLANTILLA PARA DESPLANTE CON CONCRETO F'C=  100 KG/CM2, ARMADA CON VARILLA DEL No.- 3 @ 20 CMS. EN AMBOS SENTIDOS, ADEMADA CON BLOCK 15X20X40CS., CON CELDAS RELLENAS DE CONCRETO F'C= 100 KG/CM2  Y VARILLAS AHOGADAS EN LAS ESQUINAS DE 3/8, RELLENO CON MATERIAL PRODUCTO DE EXCAVACION, COLOCACIÓN, MANEJO, BAJADA, CONEXIÓN DE TUBERÍA DE ENTRADA DE AGUA ,SALIDA DEL AGUA TRATADA A POZO DE ABSORCION, VALVULAS PARA EXTRACION DE LODOS, , LLAVE DE CIERRE AUTOMÁTICO, TUBO NECESARIO DE COBRE Y P.V.C. DIVERSOS DIÁMETROS, ACCESORIOS NECESARIOS, PRUEBS DE FUNCIONAMIENTO Y TODO LO NECESARIO PARA SU PERFECTO FUNCIONAMIENTO,  CONCEPTO TERMINADO A SATISFACCIÓN DE SUPERVISIÓN, LUGAR Y PROFUNDIDAD INDICADA EN PLANOS DE PROYECTO Y/O POR SUPERVISIÓN. (VER FICHA TECNICA)","PZA",1,0,null,{"$f":"ROUND(D232*E232,2)","v":0},0]
[null,"SUBTOTAL BIODISGESTOR",null,null,null,null,{"$f":"SUM(G232)","v":0},0]
[null,null,null,null,null,null,null,{"$f":"SUM(H16:H232)","v":0}]

{"sheet":"RESUMEN","index":1,"n_rows":54,"n_cols":6,"rows_kept":54,"cut":false,"hidden":false,"merged":[[77,0,77,6],[78,0,78,6],[2,1,2,5],[8,0,8,4],[8,5,9,6],[9,0,9,4],[10,0,10,4],[10,5,10,6],[1,0,1,6],[3,0,3,6],[5,0,5,6]]}
[]
["GOBIERNO DEL ESTADO DE BAJA CALIFORNIA SUR"]
[null,"SECRETARIA DE PLANEACIÓN URBANA, INFRAESTRUCTURA, MOVILIDAD,\nMEDIO AMBIENTE Y RECURSOS NATURALES"]
["DIRECCIÓN DE OBRAS PUBLICAS"]
[]
["RESUMEN"]
[]
[]
["OBRA:    Construccion de la Cancha de Usos Multiples de la Comunidad de Bahía Asuncion",null,null,null,null,"No. Licitacion: \nLPO-000000007-025-2022"]
["UBICACIÓN: Bahia Asuncion"]
["MUNICIPIO: Mulege, Baja California Sur",null,null,null,null,"Concurso: "]
[]
[{"$f":"CATALOGO!A14","v":"A.-"},{"$f":"CATALOGO!B14","v":"PRELIMINARES"},null,null,{"$f":"+CATALOGO!G24","v":0}]
[]
[{"$f":"CATALOGO!A25","v":"B.-"},{"$f":"CATALOGO!B25","v":"TECHUMBRE METALICA"},null,null,{"$f":"SUM(E16:E18)","v":0}]
[{"$f":"+CATALOGO!A26","v":"I.-"},{"$f":"+CATALOGO!B26","v":"CIMENTACION"},null,null,{"$f":"+CATALOGO!G39","v":0}]
[{"$f":"+CATALOGO!A40","v":"II.-"},{"$f":"+CATALOGO!B40","v":"ESTRUCTURA DE ACERO Y TECHUMBRE"},null,null,{"$f":"+CATALOGO!G53","v":0}]
[{"$f":"+CATALOGO!A54","v":"III.-"},{"$f":"+CATALOGO!B54","v":"ALBAÑILERIA Y ACABADOS"},null,null,{"$f":"+CATALOGO!G60","v":0}]
[null,null,null,null,{"$f":"+CATALOGO!G5","v":0}]
[{"$f":"+CATALOGO!A61","v":"C.-"},{"$f":"+CATALOGO!B61","v":"TEMPLETE"},null,null,{"$f":"SUM(E21:E22)","v":0}]
[{"$f":"+CATALOGO!A62","v":"I.-"},{"$f":"+CATALOGO!B62","v":"CIMENTACION"},null,null,{"$f":"+CATALOGO!G69","v":0}]
[{"$f":"+CATALOGO!A70","v":"II.-"},{"$f":"+CATALOGO!B70","v":"ALBAÑILERÍA Y ACABADOS"},null,null,{"$f":"+CATALOGO!G78","v":0}]
[]
[{"$f":"CATALOGO!A79","v":"D.-"},{"$f":"CATALOGO!B79","v":"MURO DE MAMPOSTERIA Y BARDA "},null,null,{"$f":"SUM(E25:E26)","v":0}]
[{"$f":"+CATALOGO!A80","v":"I.-"},{"$f":"+CATALOGO!B80","v":"CIMENTACION"},null,null,{"$f":"+CATALOGO!G83","v":0}]
[{"$f":"+CATALOGO!A84","v":"II.-"},{"$f":"+CATALOGO!B84","v":"ALBAÑILERÍA Y ACABADOS"},null,null,{"$f":"+CATALOGO!G90","v":0}]
[]
[{"$f":"CATALOGO!A91","v":"E.-"},{"$f":"CATALOGO!B91","v":"GRADAS"},null,null,{"$f":"SUM(E29:E30)","v":0}]
[{"$f":"+CATALOGO!A92","v":"I.-"},{"$f":"+CATALOGO!B92","v":"CIMENTACION"},null,null,{"$f":"+CATALOGO!G95","v":0}]
[{"$f":"+CATALOGO!A96","v":"II.-"},{"$f":"+CATALOGO!B96","v":"ALBAÑILERÍA Y ACABADOS"},null,null,{"$f":"+CATALOGO!G105","v":0}]
[]
[{"$f":"CATALOGO!A106","v":"F.-"},{"$f":"CATALOGO!B106","v":"BARDA "},null,null,{"$f":"SUM(E33:E34)","v":0}]
[{"$f":"+CATALOGO!A107","v":"I.-"},{"$f":"+CATALOGO!B107","v":"CIMENTACION"},null,null,{"$f":"+CATALOGO!G113","v":0}]
[{"$f":"+CATALOGO!A114","v":"II.-"},{"$f":"+CATALOGO!B114","v":"ALBAÑILERÍA Y ACABADOS"},null,null,{"$f":"+CATALOGO!G121","v":0}]
[]
[{"$f":"CATALOGO!A122","v":"G.-"},{"$f":"CATALOGO!B122","v":"JARDINERIA Y OBRA EXTERIOR"},null,null,{"$f":"+CATALOGO!G126","v":0}]
[]
[{"$f":"CATALOGO!A127","v":"H.-"},{"$f":"CATALOGO!B127","v":"INSTALACIONES ELECTRICAS"},null,null,{"$f":"SUM(E39:E40)","v":0}]
["I.-","TECHUMBRE METALICA",null,null,{"$f":"+CATALOGO!G161","v":0}]
["II.-","BAÑOS Y TEMPLETE",null,null,{"$f":"+CATALOGO!G176","v":0}]
[]
["I.-",{"$f":"+CATALOGO!B177","v":"MODULO DE BAÑOS"},null,null,{"$f":"SUM(E43:E48)","v":0}]
["1.-","CIMENTACION",null,null,{"$f":"+CATALOGO!G184","v":0}]
["2.-","ALBAÑILERIA Y ACABADOS",null,null,{"$f":"+CATALOGO!G210","v":0}]
["3.-","ESTRUCTURA",null,null,{"$f":"+CATALOGO!G213","v":0}]
["4.-","INSTALACIONES HIDROSANITARIAS",null,null,{"$f":"+CATALOGO!G223","v":0}]
["5.-","HERRERIA Y CANCELERIA",null,null,{"$f":"+CATALOGO!G230","v":0}]
["6.-","BIODISGESTOR",null,null,{"$f":"+CATALOGO!G233","v":0}]
[]
[]
[]
[null,null,"SUBTOTAL",null,{"$f":"E42+E38+E36+E32+E28+E24+E20+E15+E13","v":0}]
[null,null,"I.V.A. 16 %",null,{"$f":"ROUND(E52*0.16,2)","v":0}]
[null,null,"TOTAL",null,{"$f":"SUM(E52:E53)","v":0}]